{"text_format":"1","workbook":"xlsx","n_sheets":4,"sheets":["Fast","Sponsored Products Campaigns","Sponsored Products Campaigns 0","Config"],"not_rendered":{"charts":0,"images":0,"macros":1,"external_links":1,"defined_names":81,"comments":0,"pivot_tables":0},"unopened":[],"bounds":{"document_bytes":16777216,"sheet_cells":100000,"rows_first":2000,"rows_last":500,"rows_between":2000,"halvings":0,"cell_chars":16384,"cell_head_chars":4096},"cells_cut":0,"cells_raw":0,"read":"whole","date_system":"1900"}

{"sheet":"Fast","index":0,"n_rows":27,"n_cols":18,"rows_kept":27,"cut":false,"hidden":false,"merged":[]}
["Campaign name prefix","Campaign Id","Portfolio Id","Start Date","Targeting Type","State","Daily Budget","SKU","Ad Group Default Bid","Bid","Keyword Text","Match Type","Bidding Strategy","Placement = Top","Percentage (Placement Top)","Placement = PP","Percentage (Placement Product)","Campaign name sufix"]
["SP-EYE-CREAM-HYACID-CAT=EYE CREAMS",{"$f":"A2&R2","v":"SP-EYE-CREAM-HYACID-CAT=EYE CREAMS(TEST-16.08)"},"12321213123231",20230814,"Manual","enabled",10,342324432,1,0.5,"category=\"234432234234\"","Broad","Dynamic bids - down only","placementTop",0,"placementProductPage",0,"(TEST-16.08)"]
["SP-EYE-CREAM-HYACID-DEFENCE-BROAD",{"$f":"A3&R3","v":"SP-EYE-CREAM-HYACID-DEFENCE-BROAD(TEST-16.08)"},"12321213123231",null,null,null,10,342324432,null,0.7,"+collection +eye +cream",null,null,null,0,null,0,"(TEST-16.08)"]
["SP-EYE-CREAM-HYACID-BROAD=",{"$f":"A4&K4&R4","v":"SP-EYE-CREAM-HYACID-BROAD=+hyaluronic +acid +eye +cream(TEST-16.08)"},"12321213123231",null,null,null,10,342324432,null,0.9,"+hyaluronic +acid +eye +cream",null,null,null,0,null,0,"(TEST-16.08)"]
["SP-EYE-CREAM-HYACID-BROAD=","SP-EYE-CREAM-HYACID-BROAD=+under +eye +cream(TEST-16.08)","12321213123231",null,null,null,10,342324432,null,0.9,"+under +eye +cream",null,null,null,0,null,0,"(TEST-16.08)"]
["SP-EYE-CREAM-HYACID-BROAD=",{"$f":"A6&K8&R6","v":"SP-EYE-CREAM-HYACID-BROAD=+mens +eye +cream(TEST-16.08)"},"12321213123231",null,null,null,10,342324432,null,0.9,"+eye +cream +anti +aging",null,null,null,0,null,0,"(TEST-16.08)"]
["SP-EYE-CREAM-HYACID-BROAD=",{"$f":"A7&K6&R7","v":"SP-EYE-CREAM-HYACID-BROAD=+eye +cream +anti +aging(TEST-16.08)"},"12321213123231",null,null,null,10,342324432,null,0.9,"+eye +cream +for +wrinkles",null,null,null,0,null,0,"(TEST-16.08)"]
["SP-EYE-CREAM-HYACID-BROAD=",{"$f":"A8&K7&R8","v":"SP-EYE-CREAM-HYACID-BROAD=+eye +cream +for +wrinkles(TEST-16.08)"},"12321213123231",null,null,null,10,342324432,null,0.9,"+mens +eye +cream",null,null,null,0,null,0,"(TEST-16.08)"]
["SP-EYE-CREAM-HYACID-BROAD=",{"$f":"A9&K9&R9","v":"SP-EYE-CREAM-HYACID-BROAD=+eye +cream(TEST-16.08)"},"12321213123231",null,null,null,10,342324432,null,0.9,"+eye +cream",null,null,null,0,null,0,"(TEST-16.08)"]
["SP-EYE-CREAM-HYACID-BROAD=","SP-EYE-CREAM-HYACID-BROAD=+eye +cream +hydrating(TEST-16.08)","12321213123231",null,null,null,10,342324432,null,0.9,"+eye +cream +hydrating",null,null,null,0,null,0,"(TEST-16.08)"]
["SP-EYE-CREAM-HYACID-BROAD=",{"$f":"A11&K13&R11","v":"SP-EYE-CREAM-HYACID-BROAD=+eye +wrinkle +cream(TEST-16.08)"},"12321213123231",null,null,null,10,342324432,null,0.9,"+anti +aging +eye +cream",null,null,null,0,null,0,"(TEST-16.08)"]
["SP-EYE-CREAM-HYACID-BROAD=",{"$f":"A12&K11&R12","v":"SP-EYE-CREAM-HYACID-BROAD=+anti +aging +eye +cream(TEST-16.08)"},"12321213123231",null,null,null,10,342324432,null,0.9,"+eyelid +lift",null,null,null,0,null,0,"(TEST-16.08)"]
["SP-EYE-CREAM-HYACID-BROAD=",{"$f":"A13&K12&R13","v":"SP-EYE-CREAM-HYACID-BROAD=+eyelid +lift(TEST-16.08)"},"12321213123231",null,null,null,10,342324432,null,0.9,"+eye +wrinkle +cream",null,null,null,0,null,0,"(TEST-16.08)"]
["SP-EYE-CREAM-HYACID-AUTOMATE=","SP-EYE-CREAM-HYACID-AUTOMATE=close-match(TEST-16.08)","12321213123231",null,null,null,10,342324432,null,0.9,"close-match",null,null,null,0,null,0,"(TEST-16.08)"]
[]
[]
[]
[]
["SP-EYE-CREAM-HYACID-PHRASE=","SP-EYE-CREAM-HYACID-PHRASE=under eye cream(TEST-16.08)","12321213123231",null,null,null,10,342324432,null,1.1000000000000001,"under eye cream",null,null,null,0,null,0,"(TEST-16.08)"]
["SP-EYE-CREAM-HYACID-PHRASE=","SP-EYE-CREAM-HYACID-PHRASE=eye cream anti aging(TEST-16.08)","12321213123231",null,null,null,10,342324432,null,1.1000000000000001,"eye cream anti aging",null,null,null,0,null,0,"(TEST-16.08)"]
["SP-EYE-CREAM-HYACID-PHRASE=","SP-EYE-CREAM-HYACID-PHRASE=eye cream for wrinkles(TEST-16.08)","12321213123231",null,null,null,10,342324432,null,1.1000000000000001,"eye cream for wrinkles",null,null,null,0,null,0,"(TEST-16.08)"]
["SP-EYE-CREAM-HYACID-PHRASE=","SP-EYE-CREAM-HYACID-PHRASE=mens eye cream(TEST-16.08)","12321213123231",null,null,null,10,342324432,null,1.1000000000000001,"mens eye cream",null,null,null,0,null,0,"(TEST-16.08)"]
["SP-EYE-CREAM-HYACID-PHRASE=","SP-EYE-CREAM-HYACID-PHRASE=eye cream(TEST-16.08)","12321213123231",null,null,null,10,342324432,null,1.1000000000000001,"eye cream",null,null,null,0,null,0,"(TEST-16.08)"]
["SP-EYE-CREAM-HYACID-PHRASE=","SP-EYE-CREAM-HYACID-PHRASE=eye cream hydrating(TEST-16.08)","12321213123231",null,null,null,10,342324432,null,1.1000000000000001,"eye cream hydrating",null,null,null,0,null,0,"(TEST-16.08)"]
["SP-EYE-CREAM-HYACID-PHRASE=","SP-EYE-CREAM-HYACID-PHRASE=anti aging eye cream(TEST-16.08)","12321213123231",null,null,null,10,342324432,null,1.1000000000000001,"anti aging eye cream",null,null,null,0,null,0,"(TEST-16.08)"]
["SP-EYE-CREAM-HYACID-PHRASE=","SP-EYE-CREAM-HYACID-PHRASE=eyelid lift(TEST-16.08)","12321213123231",null,null,null,10,342324432,null,1.1000000000000001,"eyelid lift",null,null,null,0,null,0,"(TEST-16.08)"]
["SP-EYE-CREAM-HYACID-PHRASE=","SP-EYE-CREAM-HYACID-PHRASE=eye wrinkle cream(TEST-16.08)","12321213123231",null,null,null,10,342324432,null,1.1000000000000001,"eye wrinkle cream",null,null,null,0,null,0,"(TEST-16.08)"]

{"sheet":"Sponsored Products Campaigns","index":1,"n_rows":134,"n_cols":25,"rows_kept":134,"cut":false,"hidden":false,"merged":[]}
["Product","Entity","Operation","Campaign Id","Ad Group Id","Portfolio Id","Ad Id","Keyword Id","Product Targeting Id","Campaign Name","Ad Group Name","Start Date","End Date","Targeting Type","State","Daily Budget","SKU","Ad Group Default Bid","Bid","Keyword Text","Match Type","Bidding Strategy","Placement","Percentage","Product Targeting Expression"]
["Sponsored Products","Campaign","Create",{"$f":"Fast!$B$2","v":"SP-EYE-CREAM-HYACID-CAT=EYE CREAMS(TEST-16.08)"},null,{"$f":"Fast!$C$2","v":"12321213123231"},null,null,null,{"$f":"Fast!$B$2","v":"SP-EYE-CREAM-HYACID-CAT=EYE CREAMS(TEST-16.08)"},null,{"$f":"Fast!$D$2","v":20230814},null,{"$f":"Fast!$E$2","v":"Manual"},{"$f":"Fast!$F$2","v":"enabled"},{"$f":"Fast!$G$2","v":10},null,null,null,null,null,{"$f":"Fast!$M$2","v":"Dynamic bids - down only"}]
["Sponsored Products","Bidding Adjustment","Create",{"$f":"Fast!$B$2","v":"SP-EYE-CREAM-HYACID-CAT=EYE CREAMS(TEST-16.08)"},null,null,null,null,null,null,null,null,null,null,null,null,null,null,null,null,null,null,{"$f":"Fast!$N$2","v":"placementTop"},{"$f":"Fast!$O$2","v":0}]
["Sponsored Products","Bidding Adjustment","Create",{"$f":"Fast!$B$2","v":"SP-EYE-CREAM-HYACID-CAT=EYE CREAMS(TEST-16.08)"},null,null,null,null,null,null,null,null,null,null,null,null,null,null,null,null,null,null,{"$f":"Fast!$P$2","v":"placementProductPage"},{"$f":"Fast!$Q$2","v":0}]
["Sponsored Products","Ad Group","Create",{"$f":"Fast!$B$2","v":"SP-EYE-CREAM-HYACID-CAT=EYE CREAMS(TEST-16.08)"},{"$f":"Fast!$B$2","v":"SP-EYE-CREAM-HYACID-CAT=EYE CREAMS(TEST-16.08)"},null,null,null,null,null,{"$f":"Fast!$B$2","v":"SP-EYE-CREAM-HYACID-CAT=EYE CREAMS(TEST-16.08)"},null,null,null,{"$f":"Fast!$F$2","v":"enabled"},null,null,{"$f":"Fast!$I$2","v":1}]
["Sponsored Products","Product Ad","Create",{"$f":"Fast!$B$2","v":"SP-EYE-CREAM-HYACID-CAT=EYE CREAMS(TEST-16.08)"},{"$f":"Fast!$B$2","v":"SP-EYE-CREAM-HYACID-CAT=EYE CREAMS(TEST-16.08)"},null,null,null,null,null,null,null,null,null,{"$f":"Fast!$F$2","v":"enabled"},null,{"$f":"Fast!$H$2","v":342324432}]
["Sponsored Products","Product Targeting","Create",{"$f":"Fast!$B$2","v":"SP-EYE-CREAM-HYACID-CAT=EYE CREAMS(TEST-16.08)"},{"$f":"Fast!$B$2","v":"SP-EYE-CREAM-HYACID-CAT=EYE CREAMS(TEST-16.08)"},null,null,null,null,null,null,null,null,null,{"$f":"Fast!$F$2","v":"enabled"},null,null,null,{"$f":"Fast!$J$2","v":0.5},null,null,null,null,null,{"$f":"Fast!$K$2","v":"category=\"234432234234\""}]
["Sponsored Products","Campaign","Create",{"$f":"Fast!$B$3","v":"SP-EYE-CREAM-HYACID-DEFENCE-BROAD(TEST-16.08)"},null,{"$f":"Fast!$C$3","v":"12321213123231"},null,null,null,{"$f":"Fast!$B$3","v":"SP-EYE-CREAM-HYACID-DEFENCE-BROAD(TEST-16.08)"},null,{"$f":"Fast!$D$2","v":20230814},null,{"$f":"Fast!$E$2","v":"Manual"},{"$f":"Fast!$F$2","v":"enabled"},{"$f":"Fast!$G$3","v":10},null,null,null,null,null,{"$f":"Fast!$M$2","v":"Dynamic bids - down only"}]
["Sponsored Products","Bidding Adjustment","Create",{"$f":"Fast!$B$3","v":"SP-EYE-CREAM-HYACID-DEFENCE-BROAD(TEST-16.08)"},null,null,null,null,null,null,null,null,null,null,null,null,null,null,null,null,null,null,{"$f":"Fast!$N$2","v":"placementTop"},{"$f":"Fast!$O$3","v":0}]
["Sponsored Products","Bidding Adjustment","Create",{"$f":"Fast!$B$3","v":"SP-EYE-CREAM-HYACID-DEFENCE-BROAD(TEST-16.08)"},null,null,null,null,null,null,null,null,null,null,null,null,null,null,null,null,null,null,{"$f":"Fast!$P$2","v":"placementProductPage"},{"$f":"Fast!$Q$3","v":0}]
["Sponsored Products","Ad Group","Create",{"$f":"Fast!$B$3","v":"SP-EYE-CREAM-HYACID-DEFENCE-BROAD(TEST-16.08)"},{"$f":"Fast!$B$3","v":"SP-EYE-CREAM-HYACID-DEFENCE-BROAD(TEST-16.08)"},null,null,null,null,null,{"$f":"Fast!$B$3","v":"SP-EYE-CREAM-HYACID-DEFENCE-BROAD(TEST-16.08)"},null,null,null,{"$f":"Fast!$F$2","v":"enabled"},null,null,{"$f":"Fast!$I$2","v":1}]
["Sponsored Products","Product Ad","Create",{"$f":"Fast!$B$3","v":"SP-EYE-CREAM-HYACID-DEFENCE-BROAD(TEST-16.08)"},{"$f":"Fast!$B$3","v":"SP-EYE-CREAM-HYACID-DEFENCE-BROAD(TEST-16.08)"},null,null,null,null,null,null,null,null,null,{"$f":"Fast!$F$2","v":"enabled"},null,{"$f":"Fast!$H$3","v":342324432}]
["Sponsored Products","Keyword","Create",{"$f":"Fast!$B$3","v":"SP-EYE-CREAM-HYACID-DEFENCE-BROAD(TEST-16.08)"},{"$f":"Fast!$B$3","v":"SP-EYE-CREAM-HYACID-DEFENCE-BROAD(TEST-16.08)"},null,null,null,null,null,null,null,null,null,{"$f":"Fast!$F$2","v":"enabled"},null,null,null,{"$f":"Fast!$J$3","v":0.7},{"$f":"Fast!$K$3","v":"+collection +eye +cream"},{"$f":"Fast!$L$2","v":"Broad"}]
["Sponsored Products","Keyword","Create",{"$f":"Fast!$B$3","v":"SP-EYE-CREAM-HYACID-DEFENCE-BROAD(TEST-16.08)"},{"$f":"Fast!$B$3","v":"SP-EYE-CREAM-HYACID-DEFENCE-BROAD(TEST-16.08)"},null,null,null,null,null,null,null,null,null,{"$f":"Fast!$F$2","v":"enabled"},null,null,null,{"$f":"Fast!$J$3","v":0.7},{"$f":"Fast!$K$3","v":"+collection +eye +cream"},{"$f":"Fast!$L$2","v":"Broad"}]
["Sponsored Products","Campaign","Create",{"$f":"Fast!$B$4","v":"SP-EYE-CREAM-HYACID-BROAD=+hyaluronic +acid +eye +cream(TEST-16.08)"},null,{"$f":"Fast!$C$4","v":"12321213123231"},null,null,null,{"$f":"Fast!$B$4","v":"SP-EYE-CREAM-HYACID-BROAD=+hyaluronic +acid +eye +cream(TEST-16.08)"},null,{"$f":"Fast!$D$2","v":20230814},null,{"$f":"Fast!$E$2","v":"Manual"},{"$f":"Fast!$F$2","v":"enabled"},{"$f":"Fast!$G$4","v":10},null,null,null,null,null,{"$f":"Fast!$M$2","v":"Dynamic bids - down only"}]
["Sponsored Products","Bidding Adjustment","Create",{"$f":"Fast!$B$4","v":"SP-EYE-CREAM-HYACID-BROAD=+hyaluronic +acid +eye +cream(TEST-16.08)"},null,null,null,null,null,null,null,null,null,null,null,null,null,null,null,null,null,null,{"$f":"Fast!$N$2","v":"placementTop"},{"$f":"Fast!$O$4","v":0}]
["Sponsored Products","Bidding Adjustment","Create",{"$f":"Fast!$B$4","v":"SP-EYE-CREAM-HYACID-BROAD=+hyaluronic +acid +eye +cream(TEST-16.08)"},null,null,null,null,null,null,null,null,null,null,null,null,null,null,null,null,null,null,{"$f":"Fast!$P$2","v":"placementProductPage"},{"$f":"Fast!$Q$4","v":0}]
["Sponsored Products","Ad Group","Create",{"$f":"Fast!$B$4","v":"SP-EYE-CREAM-HYACID-BROAD=+hyaluronic +acid +eye +cream(TEST-16.08)"},{"$f":"Fast!$B$4","v":"SP-EYE-CREAM-HYACID-BROAD=+hyaluronic +acid +eye +cream(TEST-16.08)"},null,null,null,null,null,{"$f":"Fast!$B$4","v":"SP-EYE-CREAM-HYACID-BROAD=+hyaluronic +acid +eye +cream(TEST-16.08)"},null,null,null,{"$f":"Fast!$F$2","v":"enabled"},null,null,{"$f":"Fast!$I$2","v":1}]
["Sponsored Products","Product Ad","Create",{"$f":"Fast!$B$4","v":"SP-EYE-CREAM-HYACID-BROAD=+hyaluronic +acid +eye +cream(TEST-16.08)"},{"$f":"Fast!$B$4","v":"SP-EYE-CREAM-HYACID-BROAD=+hyaluronic +acid +eye +cream(TEST-16.08)"},null,null,null,null,null,null,null,null,null,{"$f":"Fast!$F$2","v":"enabled"},null,{"$f":"Fast!$H$4","v":342324432}]
["Sponsored Products","Keyword","Create",{"$f":"Fast!$B$4","v":"SP-EYE-CREAM-HYACID-BROAD=+hyaluronic +acid +eye +cream(TEST-16.08)"},{"$f":"Fast!$B$4","v":"SP-EYE-CREAM-HYACID-BROAD=+hyaluronic +acid +eye +cream(TEST-16.08)"},null,null,null,null,null,null,null,null,null,{"$f":"Fast!$F$2","v":"enabled"},null,null,null,{"$f":"Fast!$J$4","v":0.9},{"$f":"Fast!$K$4","v":"+hyaluronic +acid +eye +cream"},{"$f":"Fast!$L$2","v":"Broad"}]
["Sponsored Products","Campaign","Create",{"$f":"Fast!$B$5","v":"SP-EYE-CREAM-HYACID-BROAD=+under +eye +cream(TEST-16.08)"},null,{"$f":"Fast!$C$5","v":"12321213123231"},null,null,null,{"$f":"Fast!$B$5","v":"SP-EYE-CREAM-HYACID-BROAD=+under +eye +cream(TEST-16.08)"},null,{"$f":"Fast!$D$2","v":20230814},null,{"$f":"Fast!$E$2","v":"Manual"},{"$f":"Fast!$F$2","v":"enabled"},{"$f":"Fast!$G$5","v":10},null,null,null,null,null,{"$f":"Fast!$M$2","v":"Dynamic bids - down only"}]
["Sponsored Products","Bidding Adjustment","Create",{"$f":"Fast!$B$5","v":"SP-EYE-CREAM-HYACID-BROAD=+under +eye +cream(TEST-16.08)"},null,null,null,null,null,null,null,null,null,null,null,null,null,null,null,null,null,null,{"$f":"Fast!$N$2","v":"placementTop"},{"$f":"Fast!$O$5","v":0}]
["Sponsored Products","Bidding Adjustment","Create",{"$f":"Fast!$B$5","v":"SP-EYE-CREAM-HYACID-BROAD=+under +eye +cream(TEST-16.08)"},null,null,null,null,null,null,null,null,null,null,null,null,null,null,null,null,null,null,{"$f":"Fast!$P$2","v":"placementProductPage"},{"$f":"Fast!$Q$5","v":0}]
["Sponsored Products","Ad Group","Create",{"$f":"Fast!$B$5","v":"SP-EYE-CREAM-HYACID-BROAD=+under +eye +cream(TEST-16.08)"},{"$f":"Fast!$B$5","v":"SP-EYE-CREAM-HYACID-BROAD=+under +eye +cream(TEST-16.08)"},null,null,null,null,null,{"$f":"Fast!$B$5","v":"SP-EYE-CREAM-HYACID-BROAD=+under +eye +cream(TEST-16.08)"},null,null,null,{"$f":"Fast!$F$2","v":"enabled"},null,null,{"$f":"Fast!$I$2","v":1}]
["Sponsored Products","Product Ad","Create",{"$f":"Fast!$B$5","v":"SP-EYE-CREAM-HYACID-BROAD=+under +eye +cream(TEST-16.08)"},{"$f":"Fast!$B$5","v":"SP-EYE-CREAM-HYACID-BROAD=+under +eye +cream(TEST-16.08)"},null,null,null,null,null,null,null,null,null,{"$f":"Fast!$F$2","v":"enabled"},null,{"$f":"Fast!$H$5","v":342324432}]
["Sponsored Products","Keyword","Create",{"$f":"Fast!$B$5","v":"SP-EYE-CREAM-HYACID-BROAD=+under +eye +cream(TEST-16.08)"},{"$f":"Fast!$B$5","v":"SP-EYE-CREAM-HYACID-BROAD=+under +eye +cream(TEST-16.08)"},null,null,null,null,null,null,null,null,null,{"$f":"Fast!$F$2","v":"enabled"},null,null,null,{"$f":"Fast!$J$5","v":0.9},{"$f":"Fast!$K$5","v":"+under +eye +cream"},{"$f":"Fast!$L$2","v":"Broad"}]
["Sponsored Products","Campaign","Create",{"$f":"Fast!$B$6","v":"SP-EYE-CREAM-HYACID-BROAD=+mens +eye +cream(TEST-16.08)"},null,{"$f":"Fast!$C$6","v":"12321213123231"},null,null,null,{"$f":"Fast!$B$6","v":"SP-EYE-CREAM-HYACID-BROAD=+mens +eye +cream(TEST-16.08)"},null,{"$f":"Fast!$D$2","v":20230814},null,{"$f":"Fast!$E$2","v":"Manual"},{"$f":"Fast!$F$2","v":"enabled"},{"$f":"Fast!$G$6","v":10},null,null,null,null,null,{"$f":"Fast!$M$2","v":"Dynamic bids - down only"}]
["Sponsored Products","Bidding Adjustment","Create",{"$f":"Fast!$B$6","v":"SP-EYE-CREAM-HYACID-BROAD=+mens +eye +cream(TEST-16.08)"},null,null,null,null,null,null,null,null,null,null,null,null,null,null,null,null,null,null,{"$f":"Fast!$N$2","v":"placementTop"},{"$f":"Fast!$O$6","v":0}]
["Sponsored Products","Bidding Adjustment","Create",{"$f":"Fast!$B$6","v":"SP-EYE-CREAM-HYACID-BROAD=+mens +eye +cream(TEST-16.08)"},null,null,null,null,null,null,null,null,null,null,null,null,null,null,null,null,null,null,{"$f":"Fast!$P$2","v":"placementProductPage"},{"$f":"Fast!$Q$6","v":0}]
["Sponsored Products","Ad Group","Create",{"$f":"Fast!$B$6","v":"SP-EYE-CREAM-HYACID-BROAD=+mens +eye +cream(TEST-16.08)"},{"$f":"Fast!$B$6","v":"SP-EYE-CREAM-HYACID-BROAD=+mens +eye +cream(TEST-16.08)"},null,null,null,null,null,{"$f":"Fast!$B$6","v":"SP-EYE-CREAM-HYACID-BROAD=+mens +eye +cream(TEST-16.08)"},null,null,null,{"$f":"Fast!$F$2","v":"enabled"},null,null,{"$f":"Fast!$I$2","v":1}]
["Sponsored Products","Product Ad","Create",{"$f":"Fast!$B$6","v":"SP-EYE-CREAM-HYACID-BROAD=+mens +eye +cream(TEST-16.08)"},{"$f":"Fast!$B$6","v":"SP-EYE-CREAM-HYACID-BROAD=+mens +eye +cream(TEST-16.08)"},null,null,null,null,null,null,null,null,null,{"$f":"Fast!$F$2","v":"enabled"},null,{"$f":"Fast!$H$6","v":342324432}]
["Sponsored Products","Keyword","Create",{"$f":"Fast!$B$6","v":"SP-EYE-CREAM-HYACID-BROAD=+mens +eye +cream(TEST-16.08)"},{"$f":"Fast!$B$6","v":"SP-EYE-CREAM-HYACID-BROAD=+mens +eye +cream(TEST-16.08)"},null,null,null,null,null,null,null,null,null,{"$f":"Fast!$F$2","v":"enabled"},null,null,null,{"$f":"Fast!$J$6","v":0.9},{"$f":"Fast!$K$8","v":"+mens +eye +cream"},{"$f":"Fast!$L$2","v":"Broad"}]
["Sponsored Products","Campaign","Create",{"$f":"Fast!$B$7","v":"SP-EYE-CREAM-HYACID-BROAD=+eye +cream +anti +aging(TEST-16.08)"},null,{"$f":"Fast!$C$7","v":"12321213123231"},null,null,null,{"$f":"Fast!$B$7","v":"SP-EYE-CREAM-HYACID-BROAD=+eye +cream +anti +aging(TEST-16.08)"},null,{"$f":"Fast!$D$2","v":20230814},null,{"$f":"Fast!$E$2","v":"Manual"},{"$f":"Fast!$F$2","v":"enabled"},{"$f":"Fast!$G$7","v":10},null,null,null,null,null,{"$f":"Fast!$M$2","v":"Dynamic bids - down only"}]
["Sponsored Products","Bidding Adjustment","Create",{"$f":"Fast!$B$7","v":"SP-EYE-CREAM-HYACID-BROAD=+eye +cream +anti +aging(TEST-16.08)"},null,null,null,null,null,null,null,null,null,null,null,null,null,null,null,null,null,null,{"$f":"Fast!$N$2","v":"placementTop"},{"$f":"Fast!$O$7","v":0}]
["Sponsored Products","Bidding Adjustment","Create",{"$f":"Fast!$B$7","v":"SP-EYE-CREAM-HYACID-BROAD=+eye +cream +anti +aging(TEST-16.08)"},null,null,null,null,null,null,null,null,null,null,null,null,null,null,null,null,null,null,{"$f":"Fast!$P$2","v":"placementProductPage"},{"$f":"Fast!$Q$7","v":0}]
["Sponsored Products","Ad Group","Create",{"$f":"Fast!$B$7","v":"SP-EYE-CREAM-HYACID-BROAD=+eye +cream +anti +aging(TEST-16.08)"},{"$f":"Fast!$B$7","v":"SP-EYE-CREAM-HYACID-BROAD=+eye +cream +anti +aging(TEST-16.08)"},null,null,null,null,null,{"$f":"Fast!$B$7","v":"SP-EYE-CREAM-HYACID-BROAD=+eye +cream +anti +aging(TEST-16.08)"},null,null,null,{"$f":"Fast!$F$2","v":"enabled"},null,null,{"$f":"Fast!$I$2","v":1}]
["Sponsored Products","Product Ad","Create",{"$f":"Fast!$B$7","v":"SP-EYE-CREAM-HYACID-BROAD=+eye +cream +anti +aging(TEST-16.08)"},{"$f":"Fast!$B$7","v":"SP-EYE-CREAM-HYACID-BROAD=+eye +cream +anti +aging(TEST-16.08)"},null,null,null,null,null,null,null,null,null,{"$f":"Fast!$F$2","v":"enabled"},null,{"$f":"Fast!$H$7","v":342324432}]
["Sponsored Products","Keyword","Create",{"$f":"Fast!$B$7","v":"SP-EYE-CREAM-HYACID-BROAD=+eye +cream +anti +aging(TEST-16.08)"},{"$f":"Fast!$B$7","v":"SP-EYE-CREAM-HYACID-BROAD=+eye +cream +anti +aging(TEST-16.08)"},null,null,null,null,null,null,null,null,null,{"$f":"Fast!$F$2","v":"enabled"},null,null,null,{"$f":"Fast!$J$7","v":0.9},{"$f":"Fast!$K$6","v":"+eye +cream +anti +aging"},{"$f":"Fast!$L$2","v":"Broad"}]
["Sponsored Products","Campaign","Create",{"$f":"Fast!$B$8","v":"SP-EYE-CREAM-HYACID-BROAD=+eye +cream +for +wrinkles(TEST-16.08)"},null,{"$f":"Fast!$C$8","v":"12321213123231"},null,null,null,{"$f":"Fast!$B$8","v":"SP-EYE-CREAM-HYACID-BROAD=+eye +cream +for +wrinkles(TEST-16.08)"},null,{"$f":"Fast!$D$2","v":20230814},null,{"$f":"Fast!$E$2","v":"Manual"},{"$f":"Fast!$F$2","v":"enabled"},{"$f":"Fast!$G$8","v":10},null,null,null,null,null,{"$f":"Fast!$M$2","v":"Dynamic bids - down only"}]
["Sponsored Products","Bidding Adjustment","Create",{"$f":"Fast!$B$8","v":"SP-EYE-CREAM-HYACID-BROAD=+eye +cream +for +wrinkles(TEST-16.08)"},null,null,null,null,null,null,null,null,null,null,null,null,null,null,null,null,null,null,{"$f":"Fast!$N$2","v":"placementTop"},{"$f":"Fast!$O$8","v":0}]
["Sponsored Products","Bidding Adjustment","Create",{"$f":"Fast!$B$8","v":"SP-EYE-CREAM-HYACID-BROAD=+eye +cream +for +wrinkles(TEST-16.08)"},null,null,null,null,null,null,null,null,null,null,null,null,null,null,null,null,null,null,{"$f":"Fast!$P$2","v":"placementProductPage"},{"$f":"Fast!$Q$8","v":0}]
["Sponsored Products","Ad Group","Create",{"$f":"Fast!$B$8","v":"SP-EYE-CREAM-HYACID-BROAD=+eye +cream +for +wrinkles(TEST-16.08)"},{"$f":"Fast!$B$8","v":"SP-EYE-CREAM-HYACID-BROAD=+eye +cream +for +wrinkles(TEST-16.08)"},null,null,null,null,null,{"$f":"Fast!$B$8","v":"SP-EYE-CREAM-HYACID-BROAD=+eye +cream +for +wrinkles(TEST-16.08)"},null,null,null,{"$f":"Fast!$F$2","v":"enabled"},null,null,{"$f":"Fast!$I$2","v":1}]
["Sponsored Products","Product Ad","Create",{"$f":"Fast!$B$8","v":"SP-EYE-CREAM-HYACID-BROAD=+eye +cream +for +wrinkles(TEST-16.08)"},{"$f":"Fast!$B$8","v":"SP-EYE-CREAM-HYACID-BROAD=+eye +cream +for +wrinkles(TEST-16.08)"},null,null,null,null,null,null,null,null,null,{"$f":"Fast!$F$2","v":"enabled"},null,{"$f":"Fast!$H$8","v":342324432}]
["Sponsored Products","Keyword","Create",{"$f":"Fast!$B$8","v":"SP-EYE-CREAM-HYACID-BROAD=+eye +cream +for +wrinkles(TEST-16.08)"},{"$f":"Fast!$B$8","v":"SP-EYE-CREAM-HYACID-BROAD=+eye +cream +for +wrinkles(TEST-16.08)"},null,null,null,null,null,null,null,null,null,{"$f":"Fast!$F$2","v":"enabled"},null,null,null,{"$f":"Fast!$J$8","v":0.9},{"$f":"Fast!$K$7","v":"+eye +cream +for +wrinkles"},{"$f":"Fast!$L$2","v":"Broad"}]
["Sponsored Products","Campaign","Create",{"$f":"Fast!$B$9","v":"SP-EYE-CREAM-HYACID-BROAD=+eye +cream(TEST-16.08)"},null,{"$f":"Fast!$C$9","v":"12321213123231"},null,null,null,{"$f":"Fast!$B$9","v":"SP-EYE-CREAM-HYACID-BROAD=+eye +cream(TEST-16.08)"},null,{"$f":"Fast!$D$2","v":20230814},null,{"$f":"Fast!$E$2","v":"Manual"},{"$f":"Fast!$F$2","v":"enabled"},{"$f":"Fast!$G$9","v":10},null,null,null,null,null,{"$f":"Fast!$M$2","v":"Dynamic bids - down only"}]
["Sponsored Products","Bidding Adjustment","Create",{"$f":"Fast!$B$9","v":"SP-EYE-CREAM-HYACID-BROAD=+eye +cream(TEST-16.08)"},null,null,null,null,null,null,null,null,null,null,null,null,null,null,null,null,null,null,{"$f":"Fast!$N$2","v":"placementTop"},{"$f":"Fast!$O$9","v":0}]
["Sponsored Products","Bidding Adjustment","Create",{"$f":"Fast!$B$9","v":"SP-EYE-CREAM-HYACID-BROAD=+eye +cream(TEST-16.08)"},null,null,null,null,null,null,null,null,null,null,null,null,null,null,null,null,null,null,{"$f":"Fast!$P$2","v":"placementProductPage"},{"$f":"Fast!$Q$9","v":0}]
["Sponsored Products","Ad Group","Create",{"$f":"Fast!$B$9","v":"SP-EYE-CREAM-HYACID-BROAD=+eye +cream(TEST-16.08)"},{"$f":"Fast!$B$9","v":"SP-EYE-CREAM-HYACID-BROAD=+eye +cream(TEST-16.08)"},null,null,null,null,null,{"$f":"Fast!$B$9","v":"SP-EYE-CREAM-HYACID-BROAD=+eye +cream(TEST-16.08)"},null,null,null,{"$f":"Fast!$F$2","v":"enabled"},null,null,{"$f":"Fast!$I$2","v":1}]
["Sponsored Products","Product Ad","Create",{"$f":"Fast!$B$9","v":"SP-EYE-CREAM-HYACID-BROAD=+eye +cream(TEST-16.08)"},{"$f":"Fast!$B$9","v":"SP-EYE-CREAM-HYACID-BROAD=+eye +cream(TEST-16.08)"},null,null,null,null,null,null,null,null,null,{"$f":"Fast!$F$2","v":"enabled"},null,{"$f":"Fast!$H$9","v":342324432}]
["Sponsored Products","Keyword","Create",{"$f":"Fast!$B$9","v":"SP-EYE-CREAM-HYACID-BROAD=+eye +cream(TEST-16.08)"},{"$f":"Fast!$B$9","v":"SP-EYE-CREAM-HYACID-BROAD=+eye +cream(TEST-16.08)"},null,null,null,null,null,null,null,null,null,{"$f":"Fast!$F$2","v":"enabled"},null,null,null,{"$f":"Fast!$J$9","v":0.9},{"$f":"Fast!K9","v":"+eye +cream"},{"$f":"Fast!$L$2","v":"Broad"}]
["Sponsored Products","Campaign","Create",{"$f":"Fast!$B$10","v":"SP-EYE-CREAM-HYACID-BROAD=+eye +cream +hydrating(TEST-16.08)"},null,{"$f":"Fast!$C$10","v":"12321213123231"},null,null,null,{"$f":"Fast!$B$10","v":"SP-EYE-CREAM-HYACID-BROAD=+eye +cream +hydrating(TEST-16.08)"},null,{"$f":"Fast!$D$2","v":20230814},null,{"$f":"Fast!$E$2","v":"Manual"},{"$f":"Fast!$F$2","v":"enabled"},{"$f":"Fast!$G$10","v":10},null,null,null,null,null,{"$f":"Fast!$M$2","v":"Dynamic bids - down only"}]
["Sponsored Products","Bidding Adjustment","Create",{"$f":"Fast!$B$10","v":"SP-EYE-CREAM-HYACID-BROAD=+eye +cream +hydrating(TEST-16.08)"},null,null,null,null,null,null,null,null,null,null,null,null,null,null,null,null,null,null,{"$f":"Fast!$N$2","v":"placementTop"},{"$f":"Fast!$O$10","v":0}]
["Sponsored Products","Bidding Adjustment","Create",{"$f":"Fast!$B$10","v":"SP-EYE-CREAM-HYACID-BROAD=+eye +cream +hydrating(TEST-16.08)"},null,null,null,null,null,null,null,null,null,null,null,null,null,null,null,null,null,null,{"$f":"Fast!$P$2","v":"placementProductPage"},{"$f":"Fast!$Q$10","v":0}]
["Sponsored Products","Ad Group","Create",{"$f":"Fast!$B$10","v":"SP-EYE-CREAM-HYACID-BROAD=+eye +cream +hydrating(TEST-16.08)"},{"$f":"Fast!$B$10","v":"SP-EYE-CREAM-HYACID-BROAD=+eye +cream +hydrating(TEST-16.08)"},null,null,null,null,null,{"$f":"Fast!$B$10","v":"SP-EYE-CREAM-HYACID-BROAD=+eye +cream +hydrating(TEST-16.08)"},null,null,null,{"$f":"Fast!$F$2","v":"enabled"},null,null,{"$f":"Fast!$I$2","v":1}]
["Sponsored Products","Product Ad","Create",{"$f":"Fast!$B$10","v":"SP-EYE-CREAM-HYACID-BROAD=+eye +cream +hydrating(TEST-16.08)"},{"$f":"Fast!$B$10","v":"SP-EYE-CREAM-HYACID-BROAD=+eye +cream +hydrating(TEST-16.08)"},null,null,null,null,null,null,null,null,null,{"$f":"Fast!$F$2","v":"enabled"},null,{"$f":"Fast!$H$10","v":342324432}]
["Sponsored Products","Keyword","Create",{"$f":"Fast!$B$10","v":"SP-EYE-CREAM-HYACID-BROAD=+eye +cream +hydrating(TEST-16.08)"},{"$f":"Fast!$B$10","v":"SP-EYE-CREAM-HYACID-BROAD=+eye +cream +hydrating(TEST-16.08)"},null,null,null,null,null,null,null,null,null,{"$f":"Fast!$F$2","v":"enabled"},null,null,null,{"$f":"Fast!$J$10","v":0.9},{"$f":"Fast!$K$10","v":"+eye +cream +hydrating"},{"$f":"Fast!$L$2","v":"Broad"}]
["Sponsored Products","Campaign","Create",{"$f":"Fast!$B$11","v":"SP-EYE-CREAM-HYACID-BROAD=+eye +wrinkle +cream(TEST-16.08)"},null,{"$f":"Fast!$C$11","v":"12321213123231"},null,null,null,{"$f":"Fast!$B$11","v":"SP-EYE-CREAM-HYACID-BROAD=+eye +wrinkle +cream(TEST-16.08)"},null,{"$f":"Fast!$D$2","v":20230814},null,{"$f":"Fast!$E$2","v":"Manual"},{"$f":"Fast!$F$2","v":"enabled"},{"$f":"Fast!$G$11","v":10},null,null,null,null,null,{"$f":"Fast!$M$2","v":"Dynamic bids - down only"}]
["Sponsored Products","Bidding Adjustment","Create",{"$f":"Fast!$B$11","v":"SP-EYE-CREAM-HYACID-BROAD=+eye +wrinkle +cream(TEST-16.08)"},null,null,null,null,null,null,null,null,null,null,null,null,null,null,null,null,null,null,{"$f":"Fast!$N$2","v":"placementTop"},{"$f":"Fast!$O$11","v":0}]
["Sponsored Products","Bidding Adjustment","Create",{"$f":"Fast!$B$11","v":"SP-EYE-CREAM-HYACID-BROAD=+eye +wrinkle +cream(TEST-16.08)"},null,null,null,null,null,null,null,null,null,null,null,null,null,null,null,null,null,null,{"$f":"Fast!$P$2","v":"placementProductPage"},{"$f":"Fast!$Q$11","v":0}]
["Sponsored Products","Ad Group","Create",{"$f":"Fast!$B$11","v":"SP-EYE-CREAM-HYACID-BROAD=+eye +wrinkle +cream(TEST-16.08)"},{"$f":"Fast!$B$11","v":"SP-EYE-CREAM-HYACID-BROAD=+eye +wrinkle +cream(TEST-16.08)"},null,null,null,null,null,{"$f":"Fast!$B$11","v":"SP-EYE-CREAM-HYACID-BROAD=+eye +wrinkle +cream(TEST-16.08)"},null,null,null,{"$f":"Fast!$F$2","v":"enabled"},null,null,{"$f":"Fast!$I$2","v":1}]
["Sponsored Products","Product Ad","Create",{"$f":"Fast!$B$11","v":"SP-EYE-CREAM-HYACID-BROAD=+eye +wrinkle +cream(TEST-16.08)"},{"$f":"Fast!$B$11","v":"SP-EYE-CREAM-HYACID-BROAD=+eye +wrinkle +cream(TEST-16.08)"},null,null,null,null,null,null,null,null,null,{"$f":"Fast!$F$2","v":"enabled"},null,{"$f":"Fast!$H$11","v":342324432}]
["Sponsored Products","Keyword","Create",{"$f":"Fast!$B$11","v":"SP-EYE-CREAM-HYACID-BROAD=+eye +wrinkle +cream(TEST-16.08)"},{"$f":"Fast!$B$11","v":"SP-EYE-CREAM-HYACID-BROAD=+eye +wrinkle +cream(TEST-16.08)"},null,null,null,null,null,null,null,null,null,{"$f":"Fast!$F$2","v":"enabled"},null,null,null,{"$f":"Fast!$J$11","v":0.9},{"$f":"Fast!$K$11","v":"+anti +aging +eye +cream"},{"$f":"Fast!$L$2","v":"Broad"}]
["Sponsored Products","Campaign","Create",{"$f":"Fast!$B$12","v":"SP-EYE-CREAM-HYACID-BROAD=+anti +aging +eye +cream(TEST-16.08)"},null,{"$f":"Fast!$C$12","v":"12321213123231"},null,null,null,{"$f":"Fast!$B$12","v":"SP-EYE-CREAM-HYACID-BROAD=+anti +aging +eye +cream(TEST-16.08)"},null,{"$f":"Fast!$D$2","v":20230814},null,{"$f":"Fast!$E$2","v":"Manual"},{"$f":"Fast!$F$2","v":"enabled"},{"$f":"Fast!$G$12","v":10},null,null,null,null,null,{"$f":"Fast!$M$2","v":"Dynamic bids - down only"}]
["Sponsored Products","Bidding Adjustment","Create",{"$f":"Fast!$B$12","v":"SP-EYE-CREAM-HYACID-BROAD=+anti +aging +eye +cream(TEST-16.08)"},null,null,null,null,null,null,null,null,null,null,null,null,null,null,null,null,null,null,{"$f":"Fast!$N$2","v":"placementTop"},{"$f":"Fast!$O$12","v":0}]
["Sponsored Products","Bidding Adjustment","Create",{"$f":"Fast!$B$12","v":"SP-EYE-CREAM-HYACID-BROAD=+anti +aging +eye +cream(TEST-16.08)"},null,null,null,null,null,null,null,null,null,null,null,null,null,null,null,null,null,null,{"$f":"Fast!$P$2","v":"placementProductPage"},{"$f":"Fast!$Q$12","v":0}]
["Sponsored Products","Ad Group","Create",{"$f":"Fast!$B$12","v":"SP-EYE-CREAM-HYACID-BROAD=+anti +aging +eye +cream(TEST-16.08)"},{"$f":"Fast!$B$12","v":"SP-EYE-CREAM-HYACID-BROAD=+anti +aging +eye +cream(TEST-16.08)"},null,null,null,null,null,{"$f":"Fast!$B$12","v":"SP-EYE-CREAM-HYACID-BROAD=+anti +aging +eye +cream(TEST-16.08)"},null,null,null,{"$f":"Fast!$F$2","v":"enabled"},null,null,{"$f":"Fast!$I$2","v":1}]
["Sponsored Products","Product Ad","Create",{"$f":"Fast!$B$12","v":"SP-EYE-CREAM-HYACID-BROAD=+anti +aging +eye +cream(TEST-16.08)"},{"$f":"Fast!$B$12","v":"SP-EYE-CREAM-HYACID-BROAD=+anti +aging +eye +cream(TEST-16.08)"},null,null,null,null,null,null,null,null,null,{"$f":"Fast!$F$2","v":"enabled"},null,{"$f":"Fast!$H$12","v":342324432}]
["Sponsored Products","Keyword","Create",{"$f":"Fast!$B$12","v":"SP-EYE-CREAM-HYACID-BROAD=+anti +aging +eye +cream(TEST-16.08)"},{"$f":"Fast!$B$12","v":"SP-EYE-CREAM-HYACID-BROAD=+anti +aging +eye +cream(TEST-16.08)"},null,null,null,null,null,null,null,null,null,{"$f":"Fast!$F$2","v":"enabled"},null,null,null,{"$f":"Fast!$J$12","v":0.9},{"$f":"Fast!$K$12","v":"+eyelid +lift"},{"$f":"Fast!$L$2","v":"Broad"}]
["Sponsored Products","Campaign","Create",{"$f":"Fast!$B$13","v":"SP-EYE-CREAM-HYACID-BROAD=+eyelid +lift(TEST-16.08)"},null,{"$f":"Fast!$C$13","v":"12321213123231"},null,null,null,{"$f":"Fast!$B$13","v":"SP-EYE-CREAM-HYACID-BROAD=+eyelid +lift(TEST-16.08)"},null,{"$f":"Fast!$D$2","v":20230814},null,{"$f":"Fast!$E$2","v":"Manual"},{"$f":"Fast!$F$2","v":"enabled"},{"$f":"Fast!$G$13","v":10},null,null,null,null,null,{"$f":"Fast!$M$2","v":"Dynamic bids - down only"}]
["Sponsored Products","Bidding Adjustment","Create",{"$f":"Fast!$B$13","v":"SP-EYE-CREAM-HYACID-BROAD=+eyelid +lift(TEST-16.08)"},null,null,null,null,null,null,null,null,null,null,null,null,null,null,null,null,null,null,{"$f":"Fast!$N$2","v":"placementTop"},{"$f":"Fast!$O$13","v":0}]
["Sponsored Products","Bidding Adjustment","Create",{"$f":"Fast!$B$13","v":"SP-EYE-CREAM-HYACID-BROAD=+eyelid +lift(TEST-16.08)"},null,null,null,null,null,null,null,null,null,null,null,null,null,null,null,null,null,null,{"$f":"Fast!$P$2","v":"placementProductPage"},{"$f":"Fast!$Q$13","v":0}]
["Sponsored Products","Ad Group","Create",{"$f":"Fast!$B$13","v":"SP-EYE-CREAM-HYACID-BROAD=+eyelid +lift(TEST-16.08)"},{"$f":"Fast!$B$13","v":"SP-EYE-CREAM-HYACID-BROAD=+eyelid +lift(TEST-16.08)"},null,null,null,null,null,{"$f":"Fast!$B$13","v":"SP-EYE-CREAM-HYACID-BROAD=+eyelid +lift(TEST-16.08)"},null,null,null,{"$f":"Fast!$F$2","v":"enabled"},null,null,{"$f":"Fast!$I$2","v":1}]
["Sponsored Products","Product Ad","Create",{"$f":"Fast!$B$13","v":"SP-EYE-CREAM-HYACID-BROAD=+eyelid +lift(TEST-16.08)"},{"$f":"Fast!$B$13","v":"SP-EYE-CREAM-HYACID-BROAD=+eyelid +lift(TEST-16.08)"},null,null,null,null,null,null,null,null,null,{"$f":"Fast!$F$2","v":"enabled"},null,{"$f":"Fast!$H$13","v":342324432}]
["Sponsored Products","Keyword","Create",{"$f":"Fast!$B$13","v":"SP-EYE-CREAM-HYACID-BROAD=+eyelid +lift(TEST-16.08)"},{"$f":"Fast!$B$13","v":"SP-EYE-CREAM-HYACID-BROAD=+eyelid +lift(TEST-16.08)"},null,null,null,null,null,null,null,null,null,{"$f":"Fast!$F$2","v":"enabled"},null,null,null,{"$f":"Fast!$J$13","v":0.9},{"$f":"Fast!$K$13","v":"+eye +wrinkle +cream"},{"$f":"Fast!$L$2","v":"Broad"}]
["Sponsored Products","Campaign","Create",{"$f":"Fast!$B$14","v":"SP-EYE-CREAM-HYACID-AUTOMATE=close-match(TEST-16.08)"},null,{"$f":"Fast!$C$14","v":"12321213123231"},null,null,null,{"$f":"Fast!$B$14","v":"SP-EYE-CREAM-HYACID-AUTOMATE=close-match(TEST-16.08)"},null,{"$f":"Fast!$D$2","v":20230814},null,{"$f":"Fast!$E$2","v":"Manual"},{"$f":"Fast!$F$2","v":"enabled"},{"$f":"Fast!$G$14","v":10},null,null,null,null,null,{"$f":"Fast!$M$2","v":"Dynamic bids - down only"}]
["Sponsored Products","Bidding Adjustment","Create",{"$f":"Fast!$B$14","v":"SP-EYE-CREAM-HYACID-AUTOMATE=close-match(TEST-16.08)"},null,null,null,null,null,null,null,null,null,null,null,null,null,null,null,null,null,null,{"$f":"Fast!$N$2","v":"placementTop"},{"$f":"Fast!$O$14","v":0}]
["Sponsored Products","Bidding Adjustment","Create",{"$f":"Fast!$B$14","v":"SP-EYE-CREAM-HYACID-AUTOMATE=close-match(TEST-16.08)"},null,null,null,null,null,null,null,null,null,null,null,null,null,null,null,null,null,null,{"$f":"Fast!$P$2","v":"placementProductPage"},{"$f":"Fast!$Q$14","v":0}]
["Sponsored Products","Ad Group","Create",{"$f":"Fast!$B$14","v":"SP-EYE-CREAM-HYACID-AUTOMATE=close-match(TEST-16.08)"},{"$f":"Fast!$B$14","v":"SP-EYE-CREAM-HYACID-AUTOMATE=close-match(TEST-16.08)"},null,null,null,null,null,{"$f":"Fast!$B$14","v":"SP-EYE-CREAM-HYACID-AUTOMATE=close-match(TEST-16.08)"},null,null,null,{"$f":"Fast!$F$2","v":"enabled"},null,null,{"$f":"Fast!$I$2","v":1}]
["Sponsored Products","Product Ad","Create",{"$f":"Fast!$B$14","v":"SP-EYE-CREAM-HYACID-AUTOMATE=close-match(TEST-16.08)"},{"$f":"Fast!$B$14","v":"SP-EYE-CREAM-HYACID-AUTOMATE=close-match(TEST-16.08)"},null,null,null,null,null,null,null,null,null,{"$f":"Fast!$F$2","v":"enabled"},null,{"$f":"Fast!$H$14","v":342324432}]
["Sponsored Products","Product Targeting","Create",{"$f":"Fast!$B$14","v":"SP-EYE-CREAM-HYACID-AUTOMATE=close-match(TEST-16.08)"},{"$f":"Fast!$B$14","v":"SP-EYE-CREAM-HYACID-AUTOMATE=close-match(TEST-16.08)"},null,null,null,null,null,null,null,null,null,{"$f":"Fast!$F$2","v":"enabled"},null,null,null,{"$f":"Fast!$J$14","v":0.9},null,null,null,null,null,{"$f":"Fast!$K$14","v":"close-match"}]
["Sponsored Products","Campaign","Create",{"$f":"Fast!$B$19","v":"SP-EYE-CREAM-HYACID-PHRASE=under eye cream(TEST-16.08)"},null,{"$f":"Fast!$C$19","v":"12321213123231"},null,null,null,{"$f":"Fast!$B$19","v":"SP-EYE-CREAM-HYACID-PHRASE=under eye cream(TEST-16.08)"},null,{"$f":"Fast!$D$2","v":20230814},null,{"$f":"Fast!$E$2","v":"Manual"},{"$f":"Fast!$F$2","v":"enabled"},{"$f":"Fast!$G$19","v":10},null,null,null,null,null,{"$f":"Fast!$M$2","v":"Dynamic bids - down only"}]
["Sponsored Products","Bidding Adjustment","Create",{"$f":"Fast!$B$19","v":"SP-EYE-CREAM-HYACID-PHRASE=under eye cream(TEST-16.08)"},null,null,null,null,null,null,null,null,null,null,null,null,null,null,null,null,null,null,{"$f":"Fast!$N$2","v":"placementTop"},{"$f":"Fast!$O$19","v":0}]
["Sponsored Products","Bidding Adjustment","Create",{"$f":"Fast!$B$19","v":"SP-EYE-CREAM-HYACID-PHRASE=under eye cream(TEST-16.08)"},null,null,null,null,null,null,null,null,null,null,null,null,null,null,null,null,null,null,{"$f":"Fast!$P$2","v":"placementProductPage"},{"$f":"Fast!$Q$19","v":0}]
["Sponsored Products","Ad Group","Create",{"$f":"Fast!$B$19","v":"SP-EYE-CREAM-HYACID-PHRASE=under eye cream(TEST-16.08)"},{"$f":"Fast!$B$19","v":"SP-EYE-CREAM-HYACID-PHRASE=under eye cream(TEST-16.08)"},null,null,null,null,null,{"$f":"Fast!$B$19","v":"SP-EYE-CREAM-HYACID-PHRASE=under eye cream(TEST-16.08)"},null,null,null,{"$f":"Fast!$F$2","v":"enabled"},null,null,{"$f":"Fast!$I$2","v":1}]
["Sponsored Products","Product Ad","Create",{"$f":"Fast!$B$19","v":"SP-EYE-CREAM-HYACID-PHRASE=under eye cream(TEST-16.08)"},{"$f":"Fast!$B$19","v":"SP-EYE-CREAM-HYACID-PHRASE=under eye cream(TEST-16.08)"},null,null,null,null,null,null,null,null,null,{"$f":"Fast!$F$2","v":"enabled"},null,{"$f":"Fast!$H$19","v":342324432}]
["Sponsored Products","Keyword","Create",{"$f":"Fast!$B$19","v":"SP-EYE-CREAM-HYACID-PHRASE=under eye cream(TEST-16.08)"},{"$f":"Fast!$B$19","v":"SP-EYE-CREAM-HYACID-PHRASE=under eye cream(TEST-16.08)"},null,null,null,null,null,null,null,null,null,{"$f":"Fast!$F$2","v":"enabled"},null,null,null,{"$f":"Fast!$J$19","v":1.1000000000000001},{"$f":"Fast!$K$19","v":"under eye cream"},{"$f":"Fast!$L$2","v":"Broad"}]
["Sponsored Products","Campaign","Create",{"$f":"Fast!$B$20","v":"SP-EYE-CREAM-HYACID-PHRASE=eye cream anti aging(TEST-16.08)"},null,{"$f":"Fast!$C$20","v":"12321213123231"},null,null,null,{"$f":"Fast!$B$20","v":"SP-EYE-CREAM-HYACID-PHRASE=eye cream anti aging(TEST-16.08)"},null,{"$f":"Fast!$D$2","v":20230814},null,{"$f":"Fast!$E$2","v":"Manual"},{"$f":"Fast!$F$2","v":"enabled"},{"$f":"Fast!$G$20","v":10},null,null,null,null,null,{"$f":"Fast!$M$2","v":"Dynamic bids - down only"}]
["Sponsored Products","Bidding Adjustment","Create",{"$f":"Fast!$B$20","v":"SP-EYE-CREAM-HYACID-PHRASE=eye cream anti aging(TEST-16.08)"},null,null,null,null,null,null,null,null,null,null,null,null,null,null,null,null,null,null,{"$f":"Fast!$N$2","v":"placementTop"},{"$f":"Fast!$O$20","v":0}]
["Sponsored Products","Bidding Adjustment","Create",{"$f":"Fast!$B$20","v":"SP-EYE-CREAM-HYACID-PHRASE=eye cream anti aging(TEST-16.08)"},null,null,null,null,null,null,null,null,null,null,null,null,null,null,null,null,null,null,{"$f":"Fast!$P$2","v":"placementProductPage"},{"$f":"Fast!$Q$20","v":0}]
["Sponsored Products","Ad Group","Create",{"$f":"Fast!$B$20","v":"SP-EYE-CREAM-HYACID-PHRASE=eye cream anti aging(TEST-16.08)"},{"$f":"Fast!$B$20","v":"SP-EYE-CREAM-HYACID-PHRASE=eye cream anti aging(TEST-16.08)"},null,null,null,null,null,{"$f":"Fast!$B$20","v":"SP-EYE-CREAM-HYACID-PHRASE=eye cream anti aging(TEST-16.08)"},null,null,null,{"$f":"Fast!$F$2","v":"enabled"},null,null,{"$f":"Fast!$I$2","v":1}]
["Sponsored Products","Product Ad","Create",{"$f":"Fast!$B$20","v":"SP-EYE-CREAM-HYACID-PHRASE=eye cream anti aging(TEST-16.08)"},{"$f":"Fast!$B$20","v":"SP-EYE-CREAM-HYACID-PHRASE=eye cream anti aging(TEST-16.08)"},null,null,null,null,null,null,null,null,null,{"$f":"Fast!$F$2","v":"enabled"},null,{"$f":"Fast!$H$20","v":342324432}]
["Sponsored Products","Keyword","Create",{"$f":"Fast!$B$20","v":"SP-EYE-CREAM-HYACID-PHRASE=eye cream anti aging(TEST-16.08)"},{"$f":"Fast!$B$20","v":"SP-EYE-CREAM-HYACID-PHRASE=eye cream anti aging(TEST-16.08)"},null,null,null,null,null,null,null,null,null,{"$f":"Fast!$F$2","v":"enabled"},null,null,null,{"$f":"Fast!$J$20","v":1.1000000000000001},{"$f":"Fast!$K$20","v":"eye cream anti aging"},{"$f":"Fast!$L$2","v":"Broad"}]
["Sponsored Products","Campaign","Create",{"$f":"Fast!$B$21","v":"SP-EYE-CREAM-HYACID-PHRASE=eye cream for wrinkles(TEST-16.08)"},null,{"$f":"Fast!$C$21","v":"12321213123231"},null,null,null,{"$f":"Fast!$B$21","v":"SP-EYE-CREAM-HYACID-PHRASE=eye cream for wrinkles(TEST-16.08)"},null,{"$f":"Fast!$D$2","v":20230814},null,{"$f":"Fast!$E$2","v":"Manual"},{"$f":"Fast!$F$2","v":"enabled"},{"$f":"Fast!$G$21","v":10},null,null,null,null,null,{"$f":"Fast!$M$2","v":"Dynamic bids - down only"}]
["Sponsored Products","Bidding Adjustment","Create",{"$f":"Fast!$B$21","v":"SP-EYE-CREAM-HYACID-PHRASE=eye cream for wrinkles(TEST-16.08)"},null,null,null,null,null,null,null,null,null,null,null,null,null,null,null,null,null,null,{"$f":"Fast!$N$2","v":"placementTop"},{"$f":"Fast!$O$21","v":0}]
["Sponsored Products","Bidding Adjustment","Create",{"$f":"Fast!$B$21","v":"SP-EYE-CREAM-HYACID-PHRASE=eye cream for wrinkles(TEST-16.08)"},null,null,null,null,null,null,null,null,null,null,null,null,null,null,null,null,null,null,{"$f":"Fast!$P$2","v":"placementProductPage"},{"$f":"Fast!$Q$21","v":0}]
["Sponsored Products","Ad Group","Create",{"$f":"Fast!$B$21","v":"SP-EYE-CREAM-HYACID-PHRASE=eye cream for wrinkles(TEST-16.08)"},{"$f":"Fast!$B$21","v":"SP-EYE-CREAM-HYACID-PHRASE=eye cream for wrinkles(TEST-16.08)"},null,null,null,null,null,{"$f":"Fast!$B$21","v":"SP-EYE-CREAM-HYACID-PHRASE=eye cream for wrinkles(TEST-16.08)"},null,null,null,{"$f":"Fast!$F$2","v":"enabled"},null,null,{"$f":"Fast!$I$2","v":1}]
["Sponsored Products","Product Ad","Create",{"$f":"Fast!$B$21","v":"SP-EYE-CREAM-HYACID-PHRASE=eye cream for wrinkles(TEST-16.08)"},{"$f":"Fast!$B$21","v":"SP-EYE-CREAM-HYACID-PHRASE=eye cream for wrinkles(TEST-16.08)"},null,null,null,null,null,null,null,null,null,{"$f":"Fast!$F$2","v":"enabled"},null,{"$f":"Fast!$H$21","v":342324432}]
["Sponsored Products","Keyword","Create",{"$f":"Fast!$B$21","v":"SP-EYE-CREAM-HYACID-PHRASE=eye cream for wrinkles(TEST-16.08)"},{"$f":"Fast!$B$21","v":"SP-EYE-CREAM-HYACID-PHRASE=eye cream for wrinkles(TEST-16.08)"},null,null,null,null,null,null,null,null,null,{"$f":"Fast!$F$2","v":"enabled"},null,null,null,{"$f":"Fast!$J$21","v":1.1000000000000001},{"$f":"Fast!$K$21","v":"eye cream for wrinkles"},{"$f":"Fast!$L$2","v":"Broad"}]
["Sponsored Products","Campaign","Create",{"$f":"Fast!$B$22","v":"SP-EYE-CREAM-HYACID-PHRASE=mens eye cream(TEST-16.08)"},null,{"$f":"Fast!$C$22","v":"12321213123231"},null,null,null,{"$f":"Fast!$B$22","v":"SP-EYE-CREAM-HYACID-PHRASE=mens eye cream(TEST-16.08)"},null,{"$f":"Fast!$D$2","v":20230814},null,{"$f":"Fast!$E$2","v":"Manual"},{"$f":"Fast!$F$2","v":"enabled"},{"$f":"Fast!$G$22","v":10},null,null,null,null,null,{"$f":"Fast!$M$2","v":"Dynamic bids - down only"}]
["Sponsored Products","Bidding Adjustment","Create",{"$f":"Fast!$B$22","v":"SP-EYE-CREAM-HYACID-PHRASE=mens eye cream(TEST-16.08)"},null,null,null,null,null,null,null,null,null,null,null,null,null,null,null,null,null,null,{"$f":"Fast!$N$2","v":"placementTop"},{"$f":"Fast!$O$22","v":0}]
["Sponsored Products","Bidding Adjustment","Create",{"$f":"Fast!$B$22","v":"SP-EYE-CREAM-HYACID-PHRASE=mens eye cream(TEST-16.08)"},null,null,null,null,null,null,null,null,null,null,null,null,null,null,null,null,null,null,{"$f":"Fast!$P$2","v":"placementProductPage"},{"$f":"Fast!$Q$22","v":0}]
["Sponsored Products","Ad Group","Create",{"$f":"Fast!$B$22","v":"SP-EYE-CREAM-HYACID-PHRASE=mens eye cream(TEST-16.08)"},{"$f":"Fast!$B$22","v":"SP-EYE-CREAM-HYACID-PHRASE=mens eye cream(TEST-16.08)"},null,null,null,null,null,{"$f":"Fast!$B$22","v":"SP-EYE-CREAM-HYACID-PHRASE=mens eye cream(TEST-16.08)"},null,null,null,{"$f":"Fast!$F$2","v":"enabled"},null,null,{"$f":"Fast!$I$2","v":1}]
["Sponsored Products","Product Ad","Create",{"$f":"Fast!$B$22","v":"SP-EYE-CREAM-HYACID-PHRASE=mens eye cream(TEST-16.08)"},{"$f":"Fast!$B$22","v":"SP-EYE-CREAM-HYACID-PHRASE=mens eye cream(TEST-16.08)"},null,null,null,null,null,null,null,null,null,{"$f":"Fast!$F$2","v":"enabled"},null,{"$f":"Fast!$H$22","v":342324432}]
["Sponsored Products","Keyword","Create",{"$f":"Fast!$B$22","v":"SP-EYE-CREAM-HYACID-PHRASE=mens eye cream(TEST-16.08)"},{"$f":"Fast!$B$22","v":"SP-EYE-CREAM-HYACID-PHRASE=mens eye cream(TEST-16.08)"},null,null,null,null,null,null,null,null,null,{"$f":"Fast!$F$2","v":"enabled"},null,null,null,{"$f":"Fast!$J$22","v":1.1000000000000001},{"$f":"Fast!$K$22","v":"mens eye cream"},{"$f":"Fast!$L$2","v":"Broad"}]
["Sponsored Products","Campaign","Create",{"$f":"Fast!$B$23","v":"SP-EYE-CREAM-HYACID-PHRASE=eye cream(TEST-16.08)"},null,{"$f":"Fast!$C$23","v":"12321213123231"},null,null,null,{"$f":"Fast!$B$23","v":"SP-EYE-CREAM-HYACID-PHRASE=eye cream(TEST-16.08)"},null,{"$f":"Fast!$D$2","v":20230814},null,{"$f":"Fast!$E$2","v":"Manual"},{"$f":"Fast!$F$2","v":"enabled"},{"$f":"Fast!$G$23","v":10},null,null,null,null,null,{"$f":"Fast!$M$2","v":"Dynamic bids - down only"}]
["Sponsored Products","Bidding Adjustment","Create",{"$f":"Fast!$B$23","v":"SP-EYE-CREAM-HYACID-PHRASE=eye cream(TEST-16.08)"},null,null,null,null,null,null,null,null,null,null,null,null,null,null,null,null,null,null,{"$f":"Fast!$N$2","v":"placementTop"},{"$f":"Fast!$O$23","v":0}]
["Sponsored Products","Bidding Adjustment","Create",{"$f":"Fast!$B$23","v":"SP-EYE-CREAM-HYACID-PHRASE=eye cream(TEST-16.08)"},null,null,null,null,null,null,null,null,null,null,null,null,null,null,null,null,null,null,{"$f":"Fast!$P$2","v":"placementProductPage"},{"$f":"Fast!$Q$23","v":0}]
["Sponsored Products","Ad Group","Create",{"$f":"Fast!$B$23","v":"SP-EYE-CREAM-HYACID-PHRASE=eye cream(TEST-16.08)"},{"$f":"Fast!$B$23","v":"SP-EYE-CREAM-HYACID-PHRASE=eye cream(TEST-16.08)"},null,null,null,null,null,{"$f":"Fast!$B$23","v":"SP-EYE-CREAM-HYACID-PHRASE=eye cream(TEST-16.08)"},null,null,null,{"$f":"Fast!$F$2","v":"enabled"},null,null,{"$f":"Fast!$I$2","v":1}]
["Sponsored Products","Product Ad","Create",{"$f":"Fast!$B$23","v":"SP-EYE-CREAM-HYACID-PHRASE=eye cream(TEST-16.08)"},{"$f":"Fast!$B$23","v":"SP-EYE-CREAM-HYACID-PHRASE=eye cream(TEST-16.08)"},null,null,null,null,null,null,null,null,null,{"$f":"Fast!$F$2","v":"enabled"},null,{"$f":"Fast!$H$23","v":342324432}]
["Sponsored Products","Keyword","Create",{"$f":"Fast!$B$23","v":"SP-EYE-CREAM-HYACID-PHRASE=eye cream(TEST-16.08)"},{"$f":"Fast!$B$23","v":"SP-EYE-CREAM-HYACID-PHRASE=eye cream(TEST-16.08)"},null,null,null,null,null,null,null,null,null,{"$f":"Fast!$F$2","v":"enabled"},null,null,null,{"$f":"Fast!$J$23","v":1.1000000000000001},{"$f":"Fast!$K$23","v":"eye cream"},{"$f":"Fast!$L$2","v":"Broad"}]
["Sponsored Products","Campaign","Create",{"$f":"Fast!$B$24","v":"SP-EYE-CREAM-HYACID-PHRASE=eye cream hydrating(TEST-16.08)"},null,{"$f":"Fast!$C$24","v":"12321213123231"},null,null,null,{"$f":"Fast!$B$24","v":"SP-EYE-CREAM-HYACID-PHRASE=eye cream hydrating(TEST-16.08)"},null,{"$f":"Fast!$D$2","v":20230814},null,{"$f":"Fast!$E$2","v":"Manual"},{"$f":"Fast!$F$2","v":"enabled"},{"$f":"Fast!$G$24","v":10},null,null,null,null,null,{"$f":"Fast!$M$2","v":"Dynamic bids - down only"}]
["Sponsored Products","Bidding Adjustment","Create",{"$f":"Fast!$B$24","v":"SP-EYE-CREAM-HYACID-PHRASE=eye cream hydrating(TEST-16.08)"},null,null,null,null,null,null,null,null,null,null,null,null,null,null,null,null,null,null,{"$f":"Fast!$N$2","v":"placementTop"},{"$f":"Fast!$O$24","v":0}]
["Sponsored Products","Bidding Adjustment","Create",{"$f":"Fast!$B$24","v":"SP-EYE-CREAM-HYACID-PHRASE=eye cream hydrating(TEST-16.08)"},null,null,null,null,null,null,null,null,null,null,null,null,null,null,null,null,null,null,{"$f":"Fast!$P$2","v":"placementProductPage"},{"$f":"Fast!$Q$24","v":0}]
["Sponsored Products","Ad Group","Create",{"$f":"Fast!$B$24","v":"SP-EYE-CREAM-HYACID-PHRASE=eye cream hydrating(TEST-16.08)"},{"$f":"Fast!$B$24","v":"SP-EYE-CREAM-HYACID-PHRASE=eye cream hydrating(TEST-16.08)"},null,null,null,null,null,{"$f":"Fast!$B$24","v":"SP-EYE-CREAM-HYACID-PHRASE=eye cream hydrating(TEST-16.08)"},null,null,null,{"$f":"Fast!$F$2","v":"enabled"},null,null,{"$f":"Fast!$I$2","v":1}]
["Sponsored Products","Product Ad","Create",{"$f":"Fast!$B$24","v":"SP-EYE-CREAM-HYACID-PHRASE=eye cream hydrating(TEST-16.08)"},{"$f":"Fast!$B$24","v":"SP-EYE-CREAM-HYACID-PHRASE=eye cream hydrating(TEST-16.08)"},null,null,null,null,null,null,null,null,null,{"$f":"Fast!$F$2","v":"enabled"},null,{"$f":"Fast!$H$24","v":342324432}]
["Sponsored Products","Keyword","Create",{"$f":"Fast!$B$24","v":"SP-EYE-CREAM-HYACID-PHRASE=eye cream hydrating(TEST-16.08)"},{"$f":"Fast!$B$24","v":"SP-EYE-CREAM-HYACID-PHRASE=eye cream hydrating(TEST-16.08)"},null,null,null,null,null,null,null,null,null,{"$f":"Fast!$F$2","v":"enabled"},null,null,null,{"$f":"Fast!$J$24","v":1.1000000000000001},{"$f":"Fast!$K$24","v":"eye cream hydrating"},{"$f":"Fast!$L$2","v":"Broad"}]
["Sponsored Products","Campaign","Create",{"$f":"Fast!$B$25","v":"SP-EYE-CREAM-HYACID-PHRASE=anti aging eye cream(TEST-16.08)"},null,{"$f":"Fast!$C$25","v":"12321213123231"},null,null,null,{"$f":"Fast!$B$25","v":"SP-EYE-CREAM-HYACID-PHRASE=anti aging eye cream(TEST-16.08)"},null,{"$f":"Fast!$D$2","v":20230814},null,{"$f":"Fast!$E$2","v":"Manual"},{"$f":"Fast!$F$2","v":"enabled"},{"$f":"Fast!$G$25","v":10},null,null,null,null,null,{"$f":"Fast!$M$2","v":"Dynamic bids - down only"}]
["Sponsored Products","Bidding Adjustment","Create",{"$f":"Fast!$B$25","v":"SP-EYE-CREAM-HYACID-PHRASE=anti aging eye cream(TEST-16.08)"},null,null,null,null,null,null,null,null,null,null,null,null,null,null,null,null,null,null,{"$f":"Fast!$N$2","v":"placementTop"},{"$f":"Fast!$O$25","v":0}]
["Sponsored Products","Bidding Adjustment","Create",{"$f":"Fast!$B$25","v":"SP-EYE-CREAM-HYACID-PHRASE=anti aging eye cream(TEST-16.08)"},null,null,null,null,null,null,null,null,null,null,null,null,null,null,null,null,null,null,{"$f":"Fast!$P$2","v":"placementProductPage"},{"$f":"Fast!$Q$25","v":0}]
["Sponsored Products","Ad Group","Create",{"$f":"Fast!$B$25","v":"SP-EYE-CREAM-HYACID-PHRASE=anti aging eye cream(TEST-16.08)"},{"$f":"Fast!$B$25","v":"SP-EYE-CREAM-HYACID-PHRASE=anti aging eye cream(TEST-16.08)"},null,null,null,null,null,{"$f":"Fast!$B$25","v":"SP-EYE-CREAM-HYACID-PHRASE=anti aging eye cream(TEST-16.08)"},null,null,null,{"$f":"Fast!$F$2","v":"enabled"},null,null,{"$f":"Fast!$I$2","v":1}]
["Sponsored Products","Product Ad","Create",{"$f":"Fast!$B$25","v":"SP-EYE-CREAM-HYACID-PHRASE=anti aging eye cream(TEST-16.08)"},{"$f":"Fast!$B$25","v":"SP-EYE-CREAM-HYACID-PHRASE=anti aging eye cream(TEST-16.08)"},null,null,null,null,null,null,null,null,null,{"$f":"Fast!$F$2","v":"enabled"},null,{"$f":"Fast!$H$25","v":342324432}]
["Sponsored Products","Keyword","Create",{"$f":"Fast!$B$25","v":"SP-EYE-CREAM-HYACID-PHRASE=anti aging eye cream(TEST-16.08)"},{"$f":"Fast!$B$25","v":"SP-EYE-CREAM-HYACID-PHRASE=anti aging eye cream(TEST-16.08)"},null,null,null,null,null,null,null,null,null,{"$f":"Fast!$F$2","v":"enabled"},null,null,null,{"$f":"Fast!$J$25","v":1.1000000000000001},{"$f":"Fast!$K$25","v":"anti aging eye cream"},{"$f":"Fast!$L$2","v":"Broad"}]
["Sponsored Products","Campaign","Create",{"$f":"Fast!$B$26","v":"SP-EYE-CREAM-HYACID-PHRASE=eyelid lift(TEST-16.08)"},null,{"$f":"Fast!$C$26","v":"12321213123231"},null,null,null,{"$f":"Fast!$B$26","v":"SP-EYE-CREAM-HYACID-PHRASE=eyelid lift(TEST-16.08)"},null,{"$f":"Fast!$D$2","v":20230814},null,{"$f":"Fast!$E$2","v":"Manual"},{"$f":"Fast!$F$2","v":"enabled"},{"$f":"Fast!$G$26","v":10},null,null,null,null,null,{"$f":"Fast!$M$2","v":"Dynamic bids - down only"}]
["Sponsored Products","Bidding Adjustment","Create",{"$f":"Fast!$B$26","v":"SP-EYE-CREAM-HYACID-PHRASE=eyelid lift(TEST-16.08)"},null,null,null,null,null,null,null,null,null,null,null,null,null,null,null,null,null,null,{"$f":"Fast!$N$2","v":"placementTop"},{"$f":"Fast!$O$26","v":0}]
["Sponsored Products","Bidding Adjustment","Create",{"$f":"Fast!$B$26","v":"SP-EYE-CREAM-HYACID-PHRASE=eyelid lift(TEST-16.08)"},null,null,null,null,null,null,null,null,null,null,null,null,null,null,null,null,null,null,{"$f":"Fast!$P$2","v":"placementProductPage"},{"$f":"Fast!$Q$26","v":0}]
["Sponsored Products","Ad Group","Create",{"$f":"Fast!$B$26","v":"SP-EYE-CREAM-HYACID-PHRASE=eyelid lift(TEST-16.08)"},{"$f":"Fast!$B$26","v":"SP-EYE-CREAM-HYACID-PHRASE=eyelid lift(TEST-16.08)"},null,null,null,null,null,{"$f":"Fast!$B$26","v":"SP-EYE-CREAM-HYACID-PHRASE=eyelid lift(TEST-16.08)"},null,null,null,{"$f":"Fast!$F$2","v":"enabled"},null,null,{"$f":"Fast!$I$2","v":1}]
["Sponsored Products","Product Ad","Create",{"$f":"Fast!$B$26","v":"SP-EYE-CREAM-HYACID-PHRASE=eyelid lift(TEST-16.08)"},{"$f":"Fast!$B$26","v":"SP-EYE-CREAM-HYACID-PHRASE=eyelid lift(TEST-16.08)"},null,null,null,null,null,null,null,null,null,{"$f":"Fast!$F$2","v":"enabled"},null,{"$f":"Fast!$H$26","v":342324432}]
["Sponsored Products","Keyword","Create",{"$f":"Fast!$B$26","v":"SP-EYE-CREAM-HYACID-PHRASE=eyelid lift(TEST-16.08)"},{"$f":"Fast!$B$26","v":"SP-EYE-CREAM-HYACID-PHRASE=eyelid lift(TEST-16.08)"},null,null,null,null,null,null,null,null,null,{"$f":"Fast!$F$2","v":"enabled"},null,null,null,{"$f":"Fast!$J$26","v":1.1000000000000001},{"$f":"Fast!$K$26","v":"eyelid lift"},{"$f":"Fast!$L$2","v":"Broad"}]
["Sponsored Products","Campaign","Create",{"$f":"Fast!$B$27","v":"SP-EYE-CREAM-HYACID-PHRASE=eye wrinkle cream(TEST-16.08)"},null,{"$f":"Fast!$C$27","v":"12321213123231"},null,null,null,{"$f":"Fast!$B$27","v":"SP-EYE-CREAM-HYACID-PHRASE=eye wrinkle cream(TEST-16.08)"},null,{"$f":"Fast!$D$2","v":20230814},null,{"$f":"Fast!$E$2","v":"Manual"},{"$f":"Fast!$F$2","v":"enabled"},{"$f":"Fast!$G$27","v":10},null,null,null,null,null,{"$f":"Fast!$M$2","v":"Dynamic bids - down only"}]
["Sponsored Products","Bidding Adjustment","Create",{"$f":"Fast!$B$27","v":"SP-EYE-CREAM-HYACID-PHRASE=eye wrinkle cream(TEST-16.08)"},null,null,null,null,null,null,null,null,null,null,null,null,null,null,null,null,null,null,{"$f":"Fast!$N$2","v":"placementTop"},{"$f":"Fast!$O$27","v":0}]
["Sponsored Products","Bidding Adjustment","Create",{"$f":"Fast!$B$27","v":"SP-EYE-CREAM-HYACID-PHRASE=eye wrinkle cream(TEST-16.08)"},null,null,null,null,null,null,null,null,null,null,null,null,null,null,null,null,null,null,{"$f":"Fast!$P$2","v":"placementProductPage"},{"$f":"Fast!$Q$27","v":0}]
["Sponsored Products","Ad Group","Create",{"$f":"Fast!$B$27","v":"SP-EYE-CREAM-HYACID-PHRASE=eye wrinkle cream(TEST-16.08)"},{"$f":"Fast!$B$27","v":"SP-EYE-CREAM-HYACID-PHRASE=eye wrinkle cream(TEST-16.08)"},null,null,null,null,null,{"$f":"Fast!$B$27","v":"SP-EYE-CREAM-HYACID-PHRASE=eye wrinkle cream(TEST-16.08)"},null,null,null,{"$f":"Fast!$F$2","v":"enabled"},null,null,{"$f":"Fast!$I$2","v":1}]
["Sponsored Products","Product Ad","Create",{"$f":"Fast!$B$27","v":"SP-EYE-CREAM-HYACID-PHRASE=eye wrinkle cream(TEST-16.08)"},{"$f":"Fast!$B$27","v":"SP-EYE-CREAM-HYACID-PHRASE=eye wrinkle cream(TEST-16.08)"},null,null,null,null,null,null,null,null,null,{"$f":"Fast!$F$2","v":"enabled"},null,{"$f":"Fast!$H$27","v":342324432}]
["Sponsored Products","Keyword","Create",{"$f":"Fast!$B$27","v":"SP-EYE-CREAM-HYACID-PHRASE=eye wrinkle cream(TEST-16.08)"},{"$f":"Fast!$B$27","v":"SP-EYE-CREAM-HYACID-PHRASE=eye wrinkle cream(TEST-16.08)"},null,null,null,null,null,null,null,null,null,{"$f":"Fast!$F$2","v":"enabled"},null,null,null,{"$f":"Fast!$J$27","v":1.1000000000000001},{"$f":"Fast!$K$27","v":"eye wrinkle cream"},{"$f":"Fast!$L$2","v":"Broad"}]

{"sheet":"Sponsored Products Campaigns 0","index":2,"n_rows":158,"n_cols":25,"rows_kept":158,"cut":false,"hidden":false,"merged":[]}
["Product","Entity","Operation","Campaign Id","Ad Group Id","Portfolio Id","Ad Id","Keyword Id","Product Targeting Id","Campaign Name","Ad Group Name","Start Date","End Date","Targeting Type","State","Daily Budget","SKU","Ad Group Default Bid","Bid","Keyword Text","Match Type","Bidding Strategy","Placement","Percentage","Product Targeting Expression"]
["Sponsored Products","Campaign","Create",{"$f":"[1]Fast!$B$2","v":"SP-EYE-CREAM-HYACID-CAT=EYE CREAMS(TEST-16.08)"},null,{"$f":"[1]Fast!$C$2","v":"12321213123231"},null,null,null,{"$f":"[1]Fast!$B$2","v":"SP-EYE-CREAM-HYACID-CAT=EYE CREAMS(TEST-16.08)"},null,{"$f":"[1]Fast!$D$2","v":20230814},null,{"$f":"[1]Fast!$E$2","v":"Manual"},{"$f":"[1]Fast!$F$2","v":"enabled"},{"$f":"[1]Fast!$G$2","v":10},null,null,null,null,null,{"$f":"[1]Fast!$M$2","v":"Dynamic bids - down only"}]
["Sponsored Products","Bidding Adjustment","Create",{"$f":"[1]Fast!$B$2","v":"SP-EYE-CREAM-HYACID-CAT=EYE CREAMS(TEST-16.08)"},null,null,null,null,null,null,null,null,null,null,null,null,null,null,null,null,null,null,{"$f":"[1]Fast!$N$2","v":"placementTop"},{"$f":"[1]Fast!$O$2","v":0}]
["Sponsored Products","Bidding Adjustment","Create",{"$f":"[1]Fast!$B$2","v":"SP-EYE-CREAM-HYACID-CAT=EYE CREAMS(TEST-16.08)"},null,null,null,null,null,null,null,null,null,null,null,null,null,null,null,null,null,null,{"$f":"[1]Fast!$P$2","v":"placementProductPage"},{"$f":"[1]Fast!$Q$2","v":0}]
["Sponsored Products","Ad Group","Create",{"$f":"[1]Fast!$B$2","v":"SP-EYE-CREAM-HYACID-CAT=EYE CREAMS(TEST-16.08)"},{"$f":"[1]Fast!$B$2","v":"SP-EYE-CREAM-HYACID-CAT=EYE CREAMS(TEST-16.08)"},null,null,null,null,null,{"$f":"[1]Fast!$B$2","v":"SP-EYE-CREAM-HYACID-CAT=EYE CREAMS(TEST-16.08)"},null,null,null,{"$f":"[1]Fast!$F$2","v":"enabled"},null,null,{"$f":"[1]Fast!$I$2","v":1}]
["Sponsored Products","Product Ad","Create",{"$f":"[1]Fast!$B$2","v":"SP-EYE-CREAM-HYACID-CAT=EYE CREAMS(TEST-16.08)"},{"$f":"[1]Fast!$B$2","v":"SP-EYE-CREAM-HYACID-CAT=EYE CREAMS(TEST-16.08)"},null,null,null,null,null,null,null,null,null,{"$f":"[1]Fast!$F$2","v":"enabled"},null,{"$f":"[1]Fast!$H$2","v":342324432}]
["Sponsored Products","Product Targeting","Create",{"$f":"[1]Fast!$B$2","v":"SP-EYE-CREAM-HYACID-CAT=EYE CREAMS(TEST-16.08)"},{"$f":"[1]Fast!$B$2","v":"SP-EYE-CREAM-HYACID-CAT=EYE CREAMS(TEST-16.08)"},null,null,null,null,null,null,null,null,null,{"$f":"[1]Fast!$F$2","v":"enabled"},null,null,null,{"$f":"[1]Fast!$J$2","v":0.5},null,null,null,null,null,{"$f":"[1]Fast!$K$2","v":"category=\"234432234234\""}]
["Sponsored Products","Campaign","Create",{"$f":"[1]Fast!$B$3","v":"SP-EYE-CREAM-HYACID-DEFENCE-BROAD(TEST-16.08)"},null,{"$f":"[1]Fast!$C$3","v":"12321213123231"},null,null,null,{"$f":"[1]Fast!$B$3","v":"SP-EYE-CREAM-HYACID-DEFENCE-BROAD(TEST-16.08)"},null,{"$f":"[1]Fast!$D$2","v":20230814},null,{"$f":"[1]Fast!$E$2","v":"Manual"},{"$f":"[1]Fast!$F$2","v":"enabled"},{"$f":"[1]Fast!$G$3","v":10},null,null,null,null,null,{"$f":"[1]Fast!$M$2","v":"Dynamic bids - down only"}]
["Sponsored Products","Bidding Adjustment","Create",{"$f":"[1]Fast!$B$3","v":"SP-EYE-CREAM-HYACID-DEFENCE-BROAD(TEST-16.08)"},null,null,null,null,null,null,null,null,null,null,null,null,null,null,null,null,null,null,{"$f":"[1]Fast!$N$2","v":"placementTop"},{"$f":"[1]Fast!$O$3","v":0}]
["Sponsored Products","Bidding Adjustment","Create",{"$f":"[1]Fast!$B$3","v":"SP-EYE-CREAM-HYACID-DEFENCE-BROAD(TEST-16.08)"},null,null,null,null,null,null,null,null,null,null,null,null,null,null,null,null,null,null,{"$f":"[1]Fast!$P$2","v":"placementProductPage"},{"$f":"[1]Fast!$Q$3","v":0}]
["Sponsored Products","Ad Group","Create",{"$f":"[1]Fast!$B$3","v":"SP-EYE-CREAM-HYACID-DEFENCE-BROAD(TEST-16.08)"},{"$f":"[1]Fast!$B$3","v":"SP-EYE-CREAM-HYACID-DEFENCE-BROAD(TEST-16.08)"},null,null,null,null,null,{"$f":"[1]Fast!$B$3","v":"SP-EYE-CREAM-HYACID-DEFENCE-BROAD(TEST-16.08)"},null,null,null,{"$f":"[1]Fast!$F$2","v":"enabled"},null,null,{"$f":"[1]Fast!$I$2","v":1}]
["Sponsored Products","Product Ad","Create",{"$f":"[1]Fast!$B$3","v":"SP-EYE-CREAM-HYACID-DEFENCE-BROAD(TEST-16.08)"},{"$f":"[1]Fast!$B$3","v":"SP-EYE-CREAM-HYACID-DEFENCE-BROAD(TEST-16.08)"},null,null,null,null,null,null,null,null,null,{"$f":"[1]Fast!$F$2","v":"enabled"},null,{"$f":"[1]Fast!$H$3","v":342324432}]
["Sponsored Products","Keyword","Create",{"$f":"[1]Fast!$B$3","v":"SP-EYE-CREAM-HYACID-DEFENCE-BROAD(TEST-16.08)"},{"$f":"[1]Fast!$B$3","v":"SP-EYE-CREAM-HYACID-DEFENCE-BROAD(TEST-16.08)"},null,null,null,null,null,null,null,null,null,{"$f":"[1]Fast!$F$2","v":"enabled"},null,null,null,{"$f":"[1]Fast!$J$3","v":0.7},{"$f":"[1]Fast!$K$3","v":"+collection +eye +cream"},{"$f":"[1]Fast!$L$2","v":"Broad"}]
["Sponsored Products","Keyword","Create",{"$f":"[1]Fast!$B$3","v":"SP-EYE-CREAM-HYACID-DEFENCE-BROAD(TEST-16.08)"},{"$f":"[1]Fast!$B$3","v":"SP-EYE-CREAM-HYACID-DEFENCE-BROAD(TEST-16.08)"},null,null,null,null,null,null,null,null,null,{"$f":"[1]Fast!$F$2","v":"enabled"},null,null,null,{"$f":"[1]Fast!$J$3","v":0.7},{"$f":"[1]Fast!$K$3","v":"+collection +eye +cream"},{"$f":"[1]Fast!$L$2","v":"Broad"}]
["Sponsored Products","Campaign","Create",{"$f":"[1]Fast!$B$4","v":"SP-EYE-CREAM-HYACID-BROAD=+hyaluronic +acid +eye +cream(TEST-16.08)"},null,{"$f":"[1]Fast!$C$4","v":"12321213123231"},null,null,null,{"$f":"[1]Fast!$B$4","v":"SP-EYE-CREAM-HYACID-BROAD=+hyaluronic +acid +eye +cream(TEST-16.08)"},null,{"$f":"[1]Fast!$D$2","v":20230814},null,{"$f":"[1]Fast!$E$2","v":"Manual"},{"$f":"[1]Fast!$F$2","v":"enabled"},{"$f":"[1]Fast!$G$4","v":10},null,null,null,null,null,{"$f":"[1]Fast!$M$2","v":"Dynamic bids - down only"}]
["Sponsored Products","Bidding Adjustment","Create",{"$f":"[1]Fast!$B$4","v":"SP-EYE-CREAM-HYACID-BROAD=+hyaluronic +acid +eye +cream(TEST-16.08)"},null,null,null,null,null,null,null,null,null,null,null,null,null,null,null,null,null,null,{"$f":"[1]Fast!$N$2","v":"placementTop"},{"$f":"[1]Fast!$O$4","v":0}]
["Sponsored Products","Bidding Adjustment","Create",{"$f":"[1]Fast!$B$4","v":"SP-EYE-CREAM-HYACID-BROAD=+hyaluronic +acid +eye +cream(TEST-16.08)"},null,null,null,null,null,null,null,null,null,null,null,null,null,null,null,null,null,null,{"$f":"[1]Fast!$P$2","v":"placementProductPage"},{"$f":"[1]Fast!$Q$4","v":0}]
["Sponsored Products","Ad Group","Create",{"$f":"[1]Fast!$B$4","v":"SP-EYE-CREAM-HYACID-BROAD=+hyaluronic +acid +eye +cream(TEST-16.08)"},{"$f":"[1]Fast!$B$4","v":"SP-EYE-CREAM-HYACID-BROAD=+hyaluronic +acid +eye +cream(TEST-16.08)"},null,null,null,null,null,{"$f":"[1]Fast!$B$4","v":"SP-EYE-CREAM-HYACID-BROAD=+hyaluronic +acid +eye +cream(TEST-16.08)"},null,null,null,{"$f":"[1]Fast!$F$2","v":"enabled"},null,null,{"$f":"[1]Fast!$I$2","v":1}]
["Sponsored Products","Product Ad","Create",{"$f":"[1]Fast!$B$4","v":"SP-EYE-CREAM-HYACID-BROAD=+hyaluronic +acid +eye +cream(TEST-16.08)"},{"$f":"[1]Fast!$B$4","v":"SP-EYE-CREAM-HYACID-BROAD=+hyaluronic +acid +eye +cream(TEST-16.08)"},null,null,null,null,null,null,null,null,null,{"$f":"[1]Fast!$F$2","v":"enabled"},null,{"$f":"[1]Fast!$H$4","v":342324432}]
["Sponsored Products","Keyword","Create",{"$f":"[1]Fast!$B$4","v":"SP-EYE-CREAM-HYACID-BROAD=+hyaluronic +acid +eye +cream(TEST-16.08)"},{"$f":"[1]Fast!$B$4","v":"SP-EYE-CREAM-HYACID-BROAD=+hyaluronic +acid +eye +cream(TEST-16.08)"},null,null,null,null,null,null,null,null,null,{"$f":"[1]Fast!$F$2","v":"enabled"},null,null,null,{"$f":"[1]Fast!$J$4","v":0.9},{"$f":"[1]Fast!$K$4","v":"+hyaluronic +acid +eye +cream"},{"$f":"[1]Fast!$L$2","v":"Broad"}]
["Sponsored Products","Campaign","Create",{"$f":"[1]Fast!$B$5","v":"SP-EYE-CREAM-HYACID-BROAD=+under +eye +cream(TEST-16.08)"},null,{"$f":"[1]Fast!$C$5","v":"12321213123231"},null,null,null,{"$f":"[1]Fast!$B$5","v":"SP-EYE-CREAM-HYACID-BROAD=+under +eye +cream(TEST-16.08)"},null,{"$f":"[1]Fast!$D$2","v":20230814},null,{"$f":"[1]Fast!$E$2","v":"Manual"},{"$f":"[1]Fast!$F$2","v":"enabled"},{"$f":"[1]Fast!$G$5","v":10},null,null,null,null,null,{"$f":"[1]Fast!$M$2","v":"Dynamic bids - down only"}]
["Sponsored Products","Bidding Adjustment","Create",{"$f":"[1]Fast!$B$5","v":"SP-EYE-CREAM-HYACID-BROAD=+under +eye +cream(TEST-16.08)"},null,null,null,null,null,null,null,null,null,null,null,null,null,null,null,null,null,null,{"$f":"[1]Fast!$N$2","v":"placementTop"},{"$f":"[1]Fast!$O$5","v":0}]
["Sponsored Products","Bidding Adjustment","Create",{"$f":"[1]Fast!$B$5","v":"SP-EYE-CREAM-HYACID-BROAD=+under +eye +cream(TEST-16.08)"},null,null,null,null,null,null,null,null,null,null,null,null,null,null,null,null,null,null,{"$f":"[1]Fast!$P$2","v":"placementProductPage"},{"$f":"[1]Fast!$Q$5","v":0}]
["Sponsored Products","Ad Group","Create",{"$f":"[1]Fast!$B$5","v":"SP-EYE-CREAM-HYACID-BROAD=+under +eye +cream(TEST-16.08)"},{"$f":"[1]Fast!$B$5","v":"SP-EYE-CREAM-HYACID-BROAD=+under +eye +cream(TEST-16.08)"},null,null,null,null,null,{"$f":"[1]Fast!$B$5","v":"SP-EYE-CREAM-HYACID-BROAD=+under +eye +cream(TEST-16.08)"},null,null,null,{"$f":"[1]Fast!$F$2","v":"enabled"},null,null,{"$f":"[1]Fast!$I$2","v":1}]
["Sponsored Products","Product Ad","Create",{"$f":"[1]Fast!$B$5","v":"SP-EYE-CREAM-HYACID-BROAD=+under +eye +cream(TEST-16.08)"},{"$f":"[1]Fast!$B$5","v":"SP-EYE-CREAM-HYACID-BROAD=+under +eye +cream(TEST-16.08)"},null,null,null,null,null,null,null,null,null,{"$f":"[1]Fast!$F$2","v":"enabled"},null,{"$f":"[1]Fast!$H$5","v":342324432}]
["Sponsored Products","Keyword","Create",{"$f":"[1]Fast!$B$5","v":"SP-EYE-CREAM-HYACID-BROAD=+under +eye +cream(TEST-16.08)"},{"$f":"[1]Fast!$B$5","v":"SP-EYE-CREAM-HYACID-BROAD=+under +eye +cream(TEST-16.08)"},null,null,null,null,null,null,null,null,null,{"$f":"[1]Fast!$F$2","v":"enabled"},null,null,null,{"$f":"[1]Fast!$J$5","v":0.9},{"$f":"[1]Fast!$K$5","v":"+under +eye +cream"},{"$f":"[1]Fast!$L$2","v":"Broad"}]
["Sponsored Products","Campaign","Create",{"$f":"[1]Fast!$B$6","v":"SP-EYE-CREAM-HYACID-BROAD=+mens +eye +cream(TEST-16.08)"},null,{"$f":"[1]Fast!$C$6","v":"12321213123231"},null,null,null,{"$f":"[1]Fast!$B$6","v":"SP-EYE-CREAM-HYACID-BROAD=+mens +eye +cream(TEST-16.08)"},null,{"$f":"[1]Fast!$D$2","v":20230814},null,{"$f":"[1]Fast!$E$2","v":"Manual"},{"$f":"[1]Fast!$F$2","v":"enabled"},{"$f":"[1]Fast!$G$6","v":10},null,null,null,null,null,{"$f":"[1]Fast!$M$2","v":"Dynamic bids - down only"}]
["Sponsored Products","Bidding Adjustment","Create",{"$f":"[1]Fast!$B$6","v":"SP-EYE-CREAM-HYACID-BROAD=+mens +eye +cream(TEST-16.08)"},null,null,null,null,null,null,null,null,null,null,null,null,null,null,null,null,null,null,{"$f":"[1]Fast!$N$2","v":"placementTop"},{"$f":"[1]Fast!$O$6","v":0}]
["Sponsored Products","Bidding Adjustment","Create",{"$f":"[1]Fast!$B$6","v":"SP-EYE-CREAM-HYACID-BROAD=+mens +eye +cream(TEST-16.08)"},null,null,null,null,null,null,null,null,null,null,null,null,null,null,null,null,null,null,{"$f":"[1]Fast!$P$2","v":"placementProductPage"},{"$f":"[1]Fast!$Q$6","v":0}]
["Sponsored Products","Ad Group","Create",{"$f":"[1]Fast!$B$6","v":"SP-EYE-CREAM-HYACID-BROAD=+mens +eye +cream(TEST-16.08)"},{"$f":"[1]Fast!$B$6","v":"SP-EYE-CREAM-HYACID-BROAD=+mens +eye +cream(TEST-16.08)"},null,null,null,null,null,{"$f":"[1]Fast!$B$6","v":"SP-EYE-CREAM-HYACID-BROAD=+mens +eye +cream(TEST-16.08)"},null,null,null,{"$f":"[1]Fast!$F$2","v":"enabled"},null,null,{"$f":"[1]Fast!$I$2","v":1}]
["Sponsored Products","Product Ad","Create",{"$f":"[1]Fast!$B$6","v":"SP-EYE-CREAM-HYACID-BROAD=+mens +eye +cream(TEST-16.08)"},{"$f":"[1]Fast!$B$6","v":"SP-EYE-CREAM-HYACID-BROAD=+mens +eye +cream(TEST-16.08)"},null,null,null,null,null,null,null,null,null,{"$f":"[1]Fast!$F$2","v":"enabled"},null,{"$f":"[1]Fast!$H$6","v":342324432}]
["Sponsored Products","Keyword","Create",{"$f":"[1]Fast!$B$6","v":"SP-EYE-CREAM-HYACID-BROAD=+mens +eye +cream(TEST-16.08)"},{"$f":"[1]Fast!$B$6","v":"SP-EYE-CREAM-HYACID-BROAD=+mens +eye +cream(TEST-16.08)"},null,null,null,null,null,null,null,null,null,{"$f":"[1]Fast!$F$2","v":"enabled"},null,null,null,{"$f":"[1]Fast!$J$6","v":0.9},{"$f":"[1]Fast!$K$8","v":"+mens +eye +cream"},{"$f":"[1]Fast!$L$2","v":"Broad"}]
["Sponsored Products","Campaign","Create",{"$f":"[1]Fast!$B$7","v":"SP-EYE-CREAM-HYACID-BROAD=+eye +cream +anti +aging(TEST-16.08)"},null,{"$f":"[1]Fast!$C$7","v":"12321213123231"},null,null,null,{"$f":"[1]Fast!$B$7","v":"SP-EYE-CREAM-HYACID-BROAD=+eye +cream +anti +aging(TEST-16.08)"},null,{"$f":"[1]Fast!$D$2","v":20230814},null,{"$f":"[1]Fast!$E$2","v":"Manual"},{"$f":"[1]Fast!$F$2","v":"enabled"},{"$f":"[1]Fast!$G$7","v":10},null,null,null,null,null,{"$f":"[1]Fast!$M$2","v":"Dynamic bids - down only"}]
["Sponsored Products","Bidding Adjustment","Create",{"$f":"[1]Fast!$B$7","v":"SP-EYE-CREAM-HYACID-BROAD=+eye +cream +anti +aging(TEST-16.08)"},null,null,null,null,null,null,null,null,null,null,null,null,null,null,null,null,null,null,{"$f":"[1]Fast!$N$2","v":"placementTop"},{"$f":"[1]Fast!$O$7","v":0}]
["Sponsored Products","Bidding Adjustment","Create",{"$f":"[1]Fast!$B$7","v":"SP-EYE-CREAM-HYACID-BROAD=+eye +cream +anti +aging(TEST-16.08)"},null,null,null,null,null,null,null,null,null,null,null,null,null,null,null,null,null,null,{"$f":"[1]Fast!$P$2","v":"placementProductPage"},{"$f":"[1]Fast!$Q$7","v":0}]
["Sponsored Products","Ad Group","Create",{"$f":"[1]Fast!$B$7","v":"SP-EYE-CREAM-HYACID-BROAD=+eye +cream +anti +aging(TEST-16.08)"},{"$f":"[1]Fast!$B$7","v":"SP-EYE-CREAM-HYACID-BROAD=+eye +cream +anti +aging(TEST-16.08)"},null,null,null,null,null,{"$f":"[1]Fast!$B$7","v":"SP-EYE-CREAM-HYACID-BROAD=+eye +cream +anti +aging(TEST-16.08)"},null,null,null,{"$f":"[1]Fast!$F$2","v":"enabled"},null,null,{"$f":"[1]Fast!$I$2","v":1}]
["Sponsored Products","Product Ad","Create",{"$f":"[1]Fast!$B$7","v":"SP-EYE-CREAM-HYACID-BROAD=+eye +cream +anti +aging(TEST-16.08)"},{"$f":"[1]Fast!$B$7","v":"SP-EYE-CREAM-HYACID-BROAD=+eye +cream +anti +aging(TEST-16.08)"},null,null,null,null,null,null,null,null,null,{"$f":"[1]Fast!$F$2","v":"enabled"},null,{"$f":"[1]Fast!$H$7","v":342324432}]
["Sponsored Products","Keyword","Create",{"$f":"[1]Fast!$B$7","v":"SP-EYE-CREAM-HYACID-BROAD=+eye +cream +anti +aging(TEST-16.08)"},{"$f":"[1]Fast!$B$7","v":"SP-EYE-CREAM-HYACID-BROAD=+eye +cream +anti +aging(TEST-16.08)"},null,null,null,null,null,null,null,null,null,{"$f":"[1]Fast!$F$2","v":"enabled"},null,null,null,{"$f":"[1]Fast!$J$7","v":0.9},{"$f":"[1]Fast!$K$6","v":"+eye +cream +anti +aging"},{"$f":"[1]Fast!$L$2","v":"Broad"}]
["Sponsored Products","Campaign","Create",{"$f":"[1]Fast!$B$8","v":"SP-EYE-CREAM-HYACID-BROAD=+eye +cream +for +wrinkles(TEST-16.08)"},null,{"$f":"[1]Fast!$C$8","v":"12321213123231"},null,null,null,{"$f":"[1]Fast!$B$8","v":"SP-EYE-CREAM-HYACID-BROAD=+eye +cream +for +wrinkles(TEST-16.08)"},null,{"$f":"[1]Fast!$D$2","v":20230814},null,{"$f":"[1]Fast!$E$2","v":"Manual"},{"$f":"[1]Fast!$F$2","v":"enabled"},{"$f":"[1]Fast!$G$8","v":10},null,null,null,null,null,{"$f":"[1]Fast!$M$2","v":"Dynamic bids - down only"}]
["Sponsored Products","Bidding Adjustment","Create",{"$f":"[1]Fast!$B$8","v":"SP-EYE-CREAM-HYACID-BROAD=+eye +cream +for +wrinkles(TEST-16.08)"},null,null,null,null,null,null,null,null,null,null,null,null,null,null,null,null,null,null,{"$f":"[1]Fast!$N$2","v":"placementTop"},{"$f":"[1]Fast!$O$8","v":0}]
["Sponsored Products","Bidding Adjustment","Create",{"$f":"[1]Fast!$B$8","v":"SP-EYE-CREAM-HYACID-BROAD=+eye +cream +for +wrinkles(TEST-16.08)"},null,null,null,null,null,null,null,null,null,null,null,null,null,null,null,null,null,null,{"$f":"[1]Fast!$P$2","v":"placementProductPage"},{"$f":"[1]Fast!$Q$8","v":0}]
["Sponsored Products","Ad Group","Create",{"$f":"[1]Fast!$B$8","v":"SP-EYE-CREAM-HYACID-BROAD=+eye +cream +for +wrinkles(TEST-16.08)"},{"$f":"[1]Fast!$B$8","v":"SP-EYE-CREAM-HYACID-BROAD=+eye +cream +for +wrinkles(TEST-16.08)"},null,null,null,null,null,{"$f":"[1]Fast!$B$8","v":"SP-EYE-CREAM-HYACID-BROAD=+eye +cream +for +wrinkles(TEST-16.08)"},null,null,null,{"$f":"[1]Fast!$F$2","v":"enabled"},null,null,{"$f":"[1]Fast!$I$2","v":1}]
["Sponsored Products","Product Ad","Create",{"$f":"[1]Fast!$B$8","v":"SP-EYE-CREAM-HYACID-BROAD=+eye +cream +for +wrinkles(TEST-16.08)"},{"$f":"[1]Fast!$B$8","v":"SP-EYE-CREAM-HYACID-BROAD=+eye +cream +for +wrinkles(TEST-16.08)"},null,null,null,null,null,null,null,null,null,{"$f":"[1]Fast!$F$2","v":"enabled"},null,{"$f":"[1]Fast!$H$8","v":342324432}]
["Sponsored Products","Keyword","Create",{"$f":"[1]Fast!$B$8","v":"SP-EYE-CREAM-HYACID-BROAD=+eye +cream +for +wrinkles(TEST-16.08)"},{"$f":"[1]Fast!$B$8","v":"SP-EYE-CREAM-HYACID-BROAD=+eye +cream +for +wrinkles(TEST-16.08)"},null,null,null,null,null,null,null,null,null,{"$f":"[1]Fast!$F$2","v":"enabled"},null,null,null,{"$f":"[1]Fast!$J$8","v":0.9},{"$f":"[1]Fast!$K$7","v":"+eye +cream +for +wrinkles"},{"$f":"[1]Fast!$L$2","v":"Broad"}]
["Sponsored Products","Campaign","Create",{"$f":"[1]Fast!$B$9","v":"SP-EYE-CREAM-HYACID-BROAD=+eye +cream(TEST-16.08)"},null,{"$f":"[1]Fast!$C$9","v":"12321213123231"},null,null,null,{"$f":"[1]Fast!$B$9","v":"SP-EYE-CREAM-HYACID-BROAD=+eye +cream(TEST-16.08)"},null,{"$f":"[1]Fast!$D$2","v":20230814},null,{"$f":"[1]Fast!$E$2","v":"Manual"},{"$f":"[1]Fast!$F$2","v":"enabled"},{"$f":"[1]Fast!$G$9","v":10},null,null,null,null,null,{"$f":"[1]Fast!$M$2","v":"Dynamic bids - down only"}]
["Sponsored Products","Bidding Adjustment","Create",{"$f":"[1]Fast!$B$9","v":"SP-EYE-CREAM-HYACID-BROAD=+eye +cream(TEST-16.08)"},null,null,null,null,null,null,null,null,null,null,null,null,null,null,null,null,null,null,{"$f":"[1]Fast!$N$2","v":"placementTop"},{"$f":"[1]Fast!$O$9","v":0}]
["Sponsored Products","Bidding Adjustment","Create",{"$f":"[1]Fast!$B$9","v":"SP-EYE-CREAM-HYACID-BROAD=+eye +cream(TEST-16.08)"},null,null,null,null,null,null,null,null,null,null,null,null,null,null,null,null,null,null,{"$f":"[1]Fast!$P$2","v":"placementProductPage"},{"$f":"[1]Fast!$Q$9","v":0}]
["Sponsored Products","Ad Group","Create",{"$f":"[1]Fast!$B$9","v":"SP-EYE-CREAM-HYACID-BROAD=+eye +cream(TEST-16.08)"},{"$f":"[1]Fast!$B$9","v":"SP-EYE-CREAM-HYACID-BROAD=+eye +cream(TEST-16.08)"},null,null,null,null,null,{"$f":"[1]Fast!$B$9","v":"SP-EYE-CREAM-HYACID-BROAD=+eye +cream(TEST-16.08)"},null,null,null,{"$f":"[1]Fast!$F$2","v":"enabled"},null,null,{"$f":"[1]Fast!$I$2","v":1}]
["Sponsored Products","Product Ad","Create",{"$f":"[1]Fast!$B$9","v":"SP-EYE-CREAM-HYACID-BROAD=+eye +cream(TEST-16.08)"},{"$f":"[1]Fast!$B$9","v":"SP-EYE-CREAM-HYACID-BROAD=+eye +cream(TEST-16.08)"},null,null,null,null,null,null,null,null,null,{"$f":"[1]Fast!$F$2","v":"enabled"},null,{"$f":"[1]Fast!$H$9","v":342324432}]
["Sponsored Products","Keyword","Create",{"$f":"[1]Fast!$B$9","v":"SP-EYE-CREAM-HYACID-BROAD=+eye +cream(TEST-16.08)"},{"$f":"[1]Fast!$B$9","v":"SP-EYE-CREAM-HYACID-BROAD=+eye +cream(TEST-16.08)"},null,null,null,null,null,null,null,null,null,{"$f":"[1]Fast!$F$2","v":"enabled"},null,null,null,{"$f":"[1]Fast!$J$9","v":0.9},{"$f":"[1]Fast!K9","v":"+eye +cream"},{"$f":"[1]Fast!$L$2","v":"Broad"}]
["Sponsored Products","Campaign","Create",{"$f":"[1]Fast!$B$10","v":"SP-EYE-CREAM-HYACID-BROAD=+eye +cream +hydrating(TEST-16.08)"},null,{"$f":"[1]Fast!$C$10","v":"12321213123231"},null,null,null,{"$f":"[1]Fast!$B$10","v":"SP-EYE-CREAM-HYACID-BROAD=+eye +cream +hydrating(TEST-16.08)"},null,{"$f":"[1]Fast!$D$2","v":20230814},null,{"$f":"[1]Fast!$E$2","v":"Manual"},{"$f":"[1]Fast!$F$2","v":"enabled"},{"$f":"[1]Fast!$G$10","v":10},null,null,null,null,null,{"$f":"[1]Fast!$M$2","v":"Dynamic bids - down only"}]
["Sponsored Products","Bidding Adjustment","Create",{"$f":"[1]Fast!$B$10","v":"SP-EYE-CREAM-HYACID-BROAD=+eye +cream +hydrating(TEST-16.08)"},null,null,null,null,null,null,null,null,null,null,null,null,null,null,null,null,null,null,{"$f":"[1]Fast!$N$2","v":"placementTop"},{"$f":"[1]Fast!$O$10","v":0}]
["Sponsored Products","Bidding Adjustment","Create",{"$f":"[1]Fast!$B$10","v":"SP-EYE-CREAM-HYACID-BROAD=+eye +cream +hydrating(TEST-16.08)"},null,null,null,null,null,null,null,null,null,null,null,null,null,null,null,null,null,null,{"$f":"[1]Fast!$P$2","v":"placementProductPage"},{"$f":"[1]Fast!$Q$10","v":0}]
["Sponsored Products","Ad Group","Create",{"$f":"[1]Fast!$B$10","v":"SP-EYE-CREAM-HYACID-BROAD=+eye +cream +hydrating(TEST-16.08)"},{"$f":"[1]Fast!$B$10","v":"SP-EYE-CREAM-HYACID-BROAD=+eye +cream +hydrating(TEST-16.08)"},null,null,null,null,null,{"$f":"[1]Fast!$B$10","v":"SP-EYE-CREAM-HYACID-BROAD=+eye +cream +hydrating(TEST-16.08)"},null,null,null,{"$f":"[1]Fast!$F$2","v":"enabled"},null,null,{"$f":"[1]Fast!$I$2","v":1}]
["Sponsored Products","Product Ad","Create",{"$f":"[1]Fast!$B$10","v":"SP-EYE-CREAM-HYACID-BROAD=+eye +cream +hydrating(TEST-16.08)"},{"$f":"[1]Fast!$B$10","v":"SP-EYE-CREAM-HYACID-BROAD=+eye +cream +hydrating(TEST-16.08)"},null,null,null,null,null,null,null,null,null,{"$f":"[1]Fast!$F$2","v":"enabled"},null,{"$f":"[1]Fast!$H$10","v":342324432}]
["Sponsored Products","Keyword","Create",{"$f":"[1]Fast!$B$10","v":"SP-EYE-CREAM-HYACID-BROAD=+eye +cream +hydrating(TEST-16.08)"},{"$f":"[1]Fast!$B$10","v":"SP-EYE-CREAM-HYACID-BROAD=+eye +cream +hydrating(TEST-16.08)"},null,null,null,null,null,null,null,null,null,{"$f":"[1]Fast!$F$2","v":"enabled"},null,null,null,{"$f":"[1]Fast!$J$10","v":0.9},{"$f":"[1]Fast!$K$10","v":"+eye +cream +hydrating"},{"$f":"[1]Fast!$L$2","v":"Broad"}]
["Sponsored Products","Campaign","Create",{"$f":"[1]Fast!$B$11","v":"SP-EYE-CREAM-HYACID-BROAD=+eye +wrinkle +cream(TEST-16.08)"},null,{"$f":"[1]Fast!$C$11","v":"12321213123231"},null,null,null,{"$f":"[1]Fast!$B$11","v":"SP-EYE-CREAM-HYACID-BROAD=+eye +wrinkle +cream(TEST-16.08)"},null,{"$f":"[1]Fast!$D$2","v":20230814},null,{"$f":"[1]Fast!$E$2","v":"Manual"},{"$f":"[1]Fast!$F$2","v":"enabled"},{"$f":"[1]Fast!$G$11","v":10},null,null,null,null,null,{"$f":"[1]Fast!$M$2","v":"Dynamic bids - down only"}]
["Sponsored Products","Bidding Adjustment","Create",{"$f":"[1]Fast!$B$11","v":"SP-EYE-CREAM-HYACID-BROAD=+eye +wrinkle +cream(TEST-16.08)"},null,null,null,null,null,null,null,null,null,null,null,null,null,null,null,null,null,null,{"$f":"[1]Fast!$N$2","v":"placementTop"},{"$f":"[1]Fast!$O$11","v":0}]
["Sponsored Products","Bidding Adjustment","Create",{"$f":"[1]Fast!$B$11","v":"SP-EYE-CREAM-HYACID-BROAD=+eye +wrinkle +cream(TEST-16.08)"},null,null,null,null,null,null,null,null,null,null,null,null,null,null,null,null,null,null,{"$f":"[1]Fast!$P$2","v":"placementProductPage"},{"$f":"[1]Fast!$Q$11","v":0}]
["Sponsored Products","Ad Group","Create",{"$f":"[1]Fast!$B$11","v":"SP-EYE-CREAM-HYACID-BROAD=+eye +wrinkle +cream(TEST-16.08)"},{"$f":"[1]Fast!$B$11","v":"SP-EYE-CREAM-HYACID-BROAD=+eye +wrinkle +cream(TEST-16.08)"},null,null,null,null,null,{"$f":"[1]Fast!$B$11","v":"SP-EYE-CREAM-HYACID-BROAD=+eye +wrinkle +cream(TEST-16.08)"},null,null,null,{"$f":"[1]Fast!$F$2","v":"enabled"},null,null,{"$f":"[1]Fast!$I$2","v":1}]
["Sponsored Products","Product Ad","Create",{"$f":"[1]Fast!$B$11","v":"SP-EYE-CREAM-HYACID-BROAD=+eye +wrinkle +cream(TEST-16.08)"},{"$f":"[1]Fast!$B$11","v":"SP-EYE-CREAM-HYACID-BROAD=+eye +wrinkle +cream(TEST-16.08)"},null,null,null,null,null,null,null,null,null,{"$f":"[1]Fast!$F$2","v":"enabled"},null,{"$f":"[1]Fast!$H$11","v":342324432}]
["Sponsored Products","Keyword","Create",{"$f":"[1]Fast!$B$11","v":"SP-EYE-CREAM-HYACID-BROAD=+eye +wrinkle +cream(TEST-16.08)"},{"$f":"[1]Fast!$B$11","v":"SP-EYE-CREAM-HYACID-BROAD=+eye +wrinkle +cream(TEST-16.08)"},null,null,null,null,null,null,null,null,null,{"$f":"[1]Fast!$F$2","v":"enabled"},null,null,null,{"$f":"[1]Fast!$J$11","v":0.9},{"$f":"[1]Fast!$K$11","v":"+anti +aging +eye +cream"},{"$f":"[1]Fast!$L$2","v":"Broad"}]
["Sponsored Products","Campaign","Create",{"$f":"[1]Fast!$B$12","v":"SP-EYE-CREAM-HYACID-BROAD=+anti +aging +eye +cream(TEST-16.08)"},null,{"$f":"[1]Fast!$C$12","v":"12321213123231"},null,null,null,{"$f":"[1]Fast!$B$12","v":"SP-EYE-CREAM-HYACID-BROAD=+anti +aging +eye +cream(TEST-16.08)"},null,{"$f":"[1]Fast!$D$2","v":20230814},null,{"$f":"[1]Fast!$E$2","v":"Manual"},{"$f":"[1]Fast!$F$2","v":"enabled"},{"$f":"[1]Fast!$G$12","v":10},null,null,null,null,null,{"$f":"[1]Fast!$M$2","v":"Dynamic bids - down only"}]
["Sponsored Products","Bidding Adjustment","Create",{"$f":"[1]Fast!$B$12","v":"SP-EYE-CREAM-HYACID-BROAD=+anti +aging +eye +cream(TEST-16.08)"},null,null,null,null,null,null,null,null,null,null,null,null,null,null,null,null,null,null,{"$f":"[1]Fast!$N$2","v":"placementTop"},{"$f":"[1]Fast!$O$12","v":0}]
["Sponsored Products","Bidding Adjustment","Create",{"$f":"[1]Fast!$B$12","v":"SP-EYE-CREAM-HYACID-BROAD=+anti +aging +eye +cream(TEST-16.08)"},null,null,null,null,null,null,null,null,null,null,null,null,null,null,null,null,null,null,{"$f":"[1]Fast!$P$2","v":"placementProductPage"},{"$f":"[1]Fast!$Q$12","v":0}]
["Sponsored Products","Ad Group","Create",{"$f":"[1]Fast!$B$12","v":"SP-EYE-CREAM-HYACID-BROAD=+anti +aging +eye +cream(TEST-16.08)"},{"$f":"[1]Fast!$B$12","v":"SP-EYE-CREAM-HYACID-BROAD=+anti +aging +eye +cream(TEST-16.08)"},null,null,null,null,null,{"$f":"[1]Fast!$B$12","v":"SP-EYE-CREAM-HYACID-BROAD=+anti +aging +eye +cream(TEST-16.08)"},null,null,null,{"$f":"[1]Fast!$F$2","v":"enabled"},null,null,{"$f":"[1]Fast!$I$2","v":1}]
["Sponsored Products","Product Ad","Create",{"$f":"[1]Fast!$B$12","v":"SP-EYE-CREAM-HYACID-BROAD=+anti +aging +eye +cream(TEST-16.08)"},{"$f":"[1]Fast!$B$12","v":"SP-EYE-CREAM-HYACID-BROAD=+anti +aging +eye +cream(TEST-16.08)"},null,null,null,null,null,null,null,null,null,{"$f":"[1]Fast!$F$2","v":"enabled"},null,{"$f":"[1]Fast!$H$12","v":342324432}]
["Sponsored Products","Keyword","Create",{"$f":"[1]Fast!$B$12","v":"SP-EYE-CREAM-HYACID-BROAD=+anti +aging +eye +cream(TEST-16.08)"},{"$f":"[1]Fast!$B$12","v":"SP-EYE-CREAM-HYACID-BROAD=+anti +aging +eye +cream(TEST-16.08)"},null,null,null,null,null,null,null,null,null,{"$f":"[1]Fast!$F$2","v":"enabled"},null,null,null,{"$f":"[1]Fast!$J$12","v":0.9},{"$f":"[1]Fast!$K$12","v":"+eyelid +lift"},{"$f":"[1]Fast!$L$2","v":"Broad"}]
["Sponsored Products","Campaign","Create",{"$f":"[1]Fast!$B$13","v":"SP-EYE-CREAM-HYACID-BROAD=+eyelid +lift(TEST-16.08)"},null,{"$f":"[1]Fast!$C$13","v":"12321213123231"},null,null,null,{"$f":"[1]Fast!$B$13","v":"SP-EYE-CREAM-HYACID-BROAD=+eyelid +lift(TEST-16.08)"},null,{"$f":"[1]Fast!$D$2","v":20230814},null,{"$f":"[1]Fast!$E$2","v":"Manual"},{"$f":"[1]Fast!$F$2","v":"enabled"},{"$f":"[1]Fast!$G$13","v":10},null,null,null,null,null,{"$f":"[1]Fast!$M$2","v":"Dynamic bids - down only"}]
["Sponsored Products","Bidding Adjustment","Create",{"$f":"[1]Fast!$B$13","v":"SP-EYE-CREAM-HYACID-BROAD=+eyelid +lift(TEST-16.08)"},null,null,null,null,null,null,null,null,null,null,null,null,null,null,null,null,null,null,{"$f":"[1]Fast!$N$2","v":"placementTop"},{"$f":"[1]Fast!$O$13","v":0}]
["Sponsored Products","Bidding Adjustment","Create",{"$f":"[1]Fast!$B$13","v":"SP-EYE-CREAM-HYACID-BROAD=+eyelid +lift(TEST-16.08)"},null,null,null,null,null,null,null,null,null,null,null,null,null,null,null,null,null,null,{"$f":"[1]Fast!$P$2","v":"placementProductPage"},{"$f":"[1]Fast!$Q$13","v":0}]
["Sponsored Products","Ad Group","Create",{"$f":"[1]Fast!$B$13","v":"SP-EYE-CREAM-HYACID-BROAD=+eyelid +lift(TEST-16.08)"},{"$f":"[1]Fast!$B$13","v":"SP-EYE-CREAM-HYACID-BROAD=+eyelid +lift(TEST-16.08)"},null,null,null,null,null,{"$f":"[1]Fast!$B$13","v":"SP-EYE-CREAM-HYACID-BROAD=+eyelid +lift(TEST-16.08)"},null,null,null,{"$f":"[1]Fast!$F$2","v":"enabled"},null,null,{"$f":"[1]Fast!$I$2","v":1}]
["Sponsored Products","Product Ad","Create",{"$f":"[1]Fast!$B$13","v":"SP-EYE-CREAM-HYACID-BROAD=+eyelid +lift(TEST-16.08)"},{"$f":"[1]Fast!$B$13","v":"SP-EYE-CREAM-HYACID-BROAD=+eyelid +lift(TEST-16.08)"},null,null,null,null,null,null,null,null,null,{"$f":"[1]Fast!$F$2","v":"enabled"},null,{"$f":"[1]Fast!$H$13","v":342324432}]
["Sponsored Products","Keyword","Create",{"$f":"[1]Fast!$B$13","v":"SP-EYE-CREAM-HYACID-BROAD=+eyelid +lift(TEST-16.08)"},{"$f":"[1]Fast!$B$13","v":"SP-EYE-CREAM-HYACID-BROAD=+eyelid +lift(TEST-16.08)"},null,null,null,null,null,null,null,null,null,{"$f":"[1]Fast!$F$2","v":"enabled"},null,null,null,{"$f":"[1]Fast!$J$13","v":0.9},{"$f":"[1]Fast!$K$13","v":"+eye +wrinkle +cream"},{"$f":"[1]Fast!$L$2","v":"Broad"}]
["Sponsored Products","Campaign","Create",{"$f":"[1]Fast!$B$14","v":"SP-EYE-CREAM-HYACID-AUTOMATE=close-match(TEST-16.08)"},null,{"$f":"[1]Fast!$C$14","v":"12321213123231"},null,null,null,{"$f":"[1]Fast!$B$14","v":"SP-EYE-CREAM-HYACID-AUTOMATE=close-match(TEST-16.08)"},null,{"$f":"[1]Fast!$D$2","v":20230814},null,{"$f":"[1]Fast!$E$2","v":"Manual"},{"$f":"[1]Fast!$F$2","v":"enabled"},{"$f":"[1]Fast!$G$14","v":10},null,null,null,null,null,{"$f":"[1]Fast!$M$2","v":"Dynamic bids - down only"}]
["Sponsored Products","Bidding Adjustment","Create",{"$f":"[1]Fast!$B$14","v":"SP-EYE-CREAM-HYACID-AUTOMATE=close-match(TEST-16.08)"},null,null,null,null,null,null,null,null,null,null,null,null,null,null,null,null,null,null,{"$f":"[1]Fast!$N$2","v":"placementTop"},{"$f":"[1]Fast!$O$14","v":0}]
["Sponsored Products","Bidding Adjustment","Create",{"$f":"[1]Fast!$B$14","v":"SP-EYE-CREAM-HYACID-AUTOMATE=close-match(TEST-16.08)"},null,null,null,null,null,null,null,null,null,null,null,null,null,null,null,null,null,null,{"$f":"[1]Fast!$P$2","v":"placementProductPage"},{"$f":"[1]Fast!$Q$14","v":0}]
["Sponsored Products","Ad Group","Create",{"$f":"[1]Fast!$B$14","v":"SP-EYE-CREAM-HYACID-AUTOMATE=close-match(TEST-16.08)"},{"$f":"[1]Fast!$B$14","v":"SP-EYE-CREAM-HYACID-AUTOMATE=close-match(TEST-16.08)"},null,null,null,null,null,{"$f":"[1]Fast!$B$14","v":"SP-EYE-CREAM-HYACID-AUTOMATE=close-match(TEST-16.08)"},null,null,null,{"$f":"[1]Fast!$F$2","v":"enabled"},null,null,{"$f":"[1]Fast!$I$2","v":1}]
["Sponsored Products","Product Ad","Create",{"$f":"[1]Fast!$B$14","v":"SP-EYE-CREAM-HYACID-AUTOMATE=close-match(TEST-16.08)"},{"$f":"[1]Fast!$B$14","v":"SP-EYE-CREAM-HYACID-AUTOMATE=close-match(TEST-16.08)"},null,null,null,null,null,null,null,null,null,{"$f":"[1]Fast!$F$2","v":"enabled"},null,{"$f":"[1]Fast!$H$14","v":342324432}]
["Sponsored Products","Product Targeting","Create",{"$f":"[1]Fast!$B$14","v":"SP-EYE-CREAM-HYACID-AUTOMATE=close-match(TEST-16.08)"},{"$f":"[1]Fast!$B$14","v":"SP-EYE-CREAM-HYACID-AUTOMATE=close-match(TEST-16.08)"},null,null,null,null,null,null,null,null,null,{"$f":"[1]Fast!$F$2","v":"enabled"},null,null,null,{"$f":"[1]Fast!$J$14","v":0.9},null,null,null,null,null,{"$f":"[1]Fast!$K$14","v":"close-match"}]
["Sponsored Products","Campaign","Create",{"$f":"[1]Fast!$B$15","v":0},null,{"$f":"[1]Fast!$C$15","v":0},null,null,null,{"$f":"[1]Fast!$B$15","v":0},null,{"$f":"[1]Fast!$D$2","v":20230814},null,{"$f":"[1]Fast!$E$2","v":"Manual"},{"$f":"[1]Fast!$F$2","v":"enabled"},{"$f":"[1]Fast!$G$15","v":0},null,null,null,null,null,{"$f":"[1]Fast!$M$2","v":"Dynamic bids - down only"}]
["Sponsored Products","Bidding Adjustment","Create",{"$f":"[1]Fast!$B$15","v":0},null,null,null,null,null,null,null,null,null,null,null,null,null,null,null,null,null,null,{"$f":"[1]Fast!$N$2","v":"placementTop"},{"$f":"[1]Fast!$O$15","v":0}]
["Sponsored Products","Bidding Adjustment","Create",{"$f":"[1]Fast!$B$15","v":0},null,null,null,null,null,null,null,null,null,null,null,null,null,null,null,null,null,null,{"$f":"[1]Fast!$P$2","v":"placementProductPage"},{"$f":"[1]Fast!$Q$15","v":0}]
["Sponsored Products","Ad Group","Create",{"$f":"[1]Fast!$B$15","v":0},{"$f":"[1]Fast!$B$15","v":0},null,null,null,null,null,{"$f":"[1]Fast!$B$15","v":0},null,null,null,{"$f":"[1]Fast!$F$2","v":"enabled"},null,null,{"$f":"[1]Fast!$I$2","v":1}]
["Sponsored Products","Product Ad","Create",{"$f":"[1]Fast!$B$15","v":0},{"$f":"[1]Fast!$B$15","v":0},null,null,null,null,null,null,null,null,null,{"$f":"[1]Fast!$F$2","v":"enabled"},null,{"$f":"[1]Fast!$H$15","v":0}]
["Sponsored Products","Product Targeting","Create",{"$f":"[1]Fast!$B$15","v":0},{"$f":"[1]Fast!$B$15","v":0},null,null,null,null,null,null,null,null,null,{"$f":"[1]Fast!$F$2","v":"enabled"},null,null,null,{"$f":"[1]Fast!$J$15","v":0},null,null,null,null,null,{"$f":"[1]Fast!$K$15","v":0}]
["Sponsored Products","Campaign","Create",{"$f":"[1]Fast!$B$16","v":0},null,{"$f":"[1]Fast!$C$16","v":0},null,null,null,{"$f":"[1]Fast!$B$16","v":0},null,{"$f":"[1]Fast!$D$2","v":20230814},null,{"$f":"[1]Fast!$E$2","v":"Manual"},{"$f":"[1]Fast!$F$2","v":"enabled"},{"$f":"[1]Fast!$G$16","v":0},null,null,null,null,null,{"$f":"[1]Fast!$M$2","v":"Dynamic bids - down only"}]
["Sponsored Products","Bidding Adjustment","Create",{"$f":"[1]Fast!$B$16","v":0},null,null,null,null,null,null,null,null,null,null,null,null,null,null,null,null,null,null,{"$f":"[1]Fast!$N$2","v":"placementTop"},{"$f":"[1]Fast!$O$16","v":0}]
["Sponsored Products","Bidding Adjustment","Create",{"$f":"[1]Fast!$B$16","v":0},null,null,null,null,null,null,null,null,null,null,null,null,null,null,null,null,null,null,{"$f":"[1]Fast!$P$2","v":"placementProductPage"},{"$f":"[1]Fast!$Q$16","v":0}]
["Sponsored Products","Ad Group","Create",{"$f":"[1]Fast!$B$16","v":0},{"$f":"[1]Fast!$B$16","v":0},null,null,null,null,null,{"$f":"[1]Fast!$B$16","v":0},null,null,null,{"$f":"[1]Fast!$F$2","v":"enabled"},null,null,{"$f":"[1]Fast!$I$2","v":1}]
["Sponsored Products","Product Ad","Create",{"$f":"[1]Fast!$B$16","v":0},{"$f":"[1]Fast!$B$16","v":0},null,null,null,null,null,null,null,null,null,{"$f":"[1]Fast!$F$2","v":"enabled"},null,{"$f":"[1]Fast!$H$16","v":0}]
["Sponsored Products","Product Targeting","Create",{"$f":"[1]Fast!$B$16","v":0},{"$f":"[1]Fast!$B$16","v":0},null,null,null,null,null,null,null,null,null,{"$f":"[1]Fast!$F$2","v":"enabled"},null,null,null,{"$f":"[1]Fast!$J$16","v":0},null,null,null,null,null,{"$f":"[1]Fast!$K$16","v":0}]
["Sponsored Products","Campaign","Create",{"$f":"[1]Fast!$B$17","v":0},null,{"$f":"[1]Fast!$C$17","v":0},null,null,null,{"$f":"[1]Fast!$B$17","v":0},null,{"$f":"[1]Fast!$D$2","v":20230814},null,{"$f":"[1]Fast!$E$2","v":"Manual"},{"$f":"[1]Fast!$F$2","v":"enabled"},{"$f":"[1]Fast!$G$17","v":0},null,null,null,null,null,{"$f":"[1]Fast!$M$2","v":"Dynamic bids - down only"}]
["Sponsored Products","Bidding Adjustment","Create",{"$f":"[1]Fast!$B$17","v":0},null,null,null,null,null,null,null,null,null,null,null,null,null,null,null,null,null,null,{"$f":"[1]Fast!$N$2","v":"placementTop"},{"$f":"[1]Fast!$O$17","v":0}]
["Sponsored Products","Bidding Adjustment","Create",{"$f":"[1]Fast!$B$17","v":0},null,null,null,null,null,null,null,null,null,null,null,null,null,null,null,null,null,null,{"$f":"[1]Fast!$P$2","v":"placementProductPage"},{"$f":"[1]Fast!$Q$17","v":0}]
["Sponsored Products","Ad Group","Create",{"$f":"[1]Fast!$B$17","v":0},{"$f":"[1]Fast!$B$17","v":0},null,null,null,null,null,{"$f":"[1]Fast!$B$17","v":0},null,null,null,{"$f":"[1]Fast!$F$2","v":"enabled"},null,null,{"$f":"[1]Fast!$I$2","v":1}]
["Sponsored Products","Product Ad","Create",{"$f":"[1]Fast!$B$17","v":0},{"$f":"[1]Fast!$B$17","v":0},null,null,null,null,null,null,null,null,null,{"$f":"[1]Fast!$F$2","v":"enabled"},null,{"$f":"[1]Fast!$H$17","v":0}]
["Sponsored Products","Product Targeting","Create",{"$f":"[1]Fast!$B$17","v":0},{"$f":"[1]Fast!$B$17","v":0},null,null,null,null,null,null,null,null,null,{"$f":"[1]Fast!$F$2","v":"enabled"},null,null,null,{"$f":"[1]Fast!$J$17","v":0},null,null,null,null,null,{"$f":"[1]Fast!$K$17","v":0}]
["Sponsored Products","Campaign","Create",{"$f":"[1]Fast!$B$18","v":0},null,{"$f":"[1]Fast!$C$18","v":0},null,null,null,{"$f":"[1]Fast!$B$18","v":0},null,{"$f":"[1]Fast!$D$2","v":20230814},null,{"$f":"[1]Fast!$E$2","v":"Manual"},{"$f":"[1]Fast!$F$2","v":"enabled"},{"$f":"[1]Fast!$G$18","v":0},null,null,null,null,null,{"$f":"[1]Fast!$M$2","v":"Dynamic bids - down only"}]
["Sponsored Products","Bidding Adjustment","Create",{"$f":"[1]Fast!$B$18","v":0},null,null,null,null,null,null,null,null,null,null,null,null,null,null,null,null,null,null,{"$f":"[1]Fast!$N$2","v":"placementTop"},{"$f":"[1]Fast!$O$18","v":0}]
["Sponsored Products","Bidding Adjustment","Create",{"$f":"[1]Fast!$B$18","v":0},null,null,null,null,null,null,null,null,null,null,null,null,null,null,null,null,null,null,{"$f":"[1]Fast!$P$2","v":"placementProductPage"},{"$f":"[1]Fast!$Q$18","v":0}]
["Sponsored Products","Ad Group","Create",{"$f":"[1]Fast!$B$18","v":0},{"$f":"[1]Fast!$B$18","v":0},null,null,null,null,null,{"$f":"[1]Fast!$B$18","v":0},null,null,null,{"$f":"[1]Fast!$F$2","v":"enabled"},null,null,{"$f":"[1]Fast!$I$2","v":1}]
["Sponsored Products","Product Ad","Create",{"$f":"[1]Fast!$B$18","v":0},{"$f":"[1]Fast!$B$18","v":0},null,null,null,null,null,null,null,null,null,{"$f":"[1]Fast!$F$2","v":"enabled"},null,{"$f":"[1]Fast!$H$18","v":0}]
["Sponsored Products","Keyword","Create",{"$f":"[1]Fast!$B$18","v":0},{"$f":"[1]Fast!$B$18","v":0},null,null,null,null,null,null,null,null,null,{"$f":"[1]Fast!$F$2","v":"enabled"},null,null,null,{"$f":"[1]Fast!$J$18","v":0},{"$f":"[1]Fast!$K$18","v":0},{"$f":"[1]Fast!$L$2","v":"Broad"}]
["Sponsored Products","Campaign","Create",{"$f":"[1]Fast!$B$19","v":"SP-EYE-CREAM-HYACID-PHRASE=under eye cream(TEST-16.08)"},null,{"$f":"[1]Fast!$C$19","v":"12321213123231"},null,null,null,{"$f":"[1]Fast!$B$19","v":"SP-EYE-CREAM-HYACID-PHRASE=under eye cream(TEST-16.08)"},null,{"$f":"[1]Fast!$D$2","v":20230814},null,{"$f":"[1]Fast!$E$2","v":"Manual"},{"$f":"[1]Fast!$F$2","v":"enabled"},{"$f":"[1]Fast!$G$19","v":10},null,null,null,null,null,{"$f":"[1]Fast!$M$2","v":"Dynamic bids - down only"}]
["Sponsored Products","Bidding Adjustment","Create",{"$f":"[1]Fast!$B$19","v":"SP-EYE-CREAM-HYACID-PHRASE=under eye cream(TEST-16.08)"},null,null,null,null,null,null,null,null,null,null,null,null,null,null,null,null,null,null,{"$f":"[1]Fast!$N$2","v":"placementTop"},{"$f":"[1]Fast!$O$19","v":0}]
["Sponsored Products","Bidding Adjustment","Create",{"$f":"[1]Fast!$B$19","v":"SP-EYE-CREAM-HYACID-PHRASE=under eye cream(TEST-16.08)"},null,null,null,null,null,null,null,null,null,null,null,null,null,null,null,null,null,null,{"$f":"[1]Fast!$P$2","v":"placementProductPage"},{"$f":"[1]Fast!$Q$19","v":0}]
["Sponsored Products","Ad Group","Create",{"$f":"[1]Fast!$B$19","v":"SP-EYE-CREAM-HYACID-PHRASE=under eye cream(TEST-16.08)"},{"$f":"[1]Fast!$B$19","v":"SP-EYE-CREAM-HYACID-PHRASE=under eye cream(TEST-16.08)"},null,null,null,null,null,{"$f":"[1]Fast!$B$19","v":"SP-EYE-CREAM-HYACID-PHRASE=under eye cream(TEST-16.08)"},null,null,null,{"$f":"[1]Fast!$F$2","v":"enabled"},null,null,{"$f":"[1]Fast!$I$2","v":1}]
["Sponsored Products","Product Ad","Create",{"$f":"[1]Fast!$B$19","v":"SP-EYE-CREAM-HYACID-PHRASE=under eye cream(TEST-16.08)"},{"$f":"[1]Fast!$B$19","v":"SP-EYE-CREAM-HYACID-PHRASE=under eye cream(TEST-16.08)"},null,null,null,null,null,null,null,null,null,{"$f":"[1]Fast!$F$2","v":"enabled"},null,{"$f":"[1]Fast!$H$19","v":342324432}]
["Sponsored Products","Keyword","Create",{"$f":"[1]Fast!$B$19","v":"SP-EYE-CREAM-HYACID-PHRASE=under eye cream(TEST-16.08)"},{"$f":"[1]Fast!$B$19","v":"SP-EYE-CREAM-HYACID-PHRASE=under eye cream(TEST-16.08)"},null,null,null,null,null,null,null,null,null,{"$f":"[1]Fast!$F$2","v":"enabled"},null,null,null,{"$f":"[1]Fast!$J$19","v":1.1000000000000001},{"$f":"[1]Fast!$K$19","v":"under eye cream"},{"$f":"[1]Fast!$L$2","v":"Broad"}]
["Sponsored Products","Campaign","Create",{"$f":"[1]Fast!$B$20","v":"SP-EYE-CREAM-HYACID-PHRASE=eye cream anti aging(TEST-16.08)"},null,{"$f":"[1]Fast!$C$20","v":"12321213123231"},null,null,null,{"$f":"[1]Fast!$B$20","v":"SP-EYE-CREAM-HYACID-PHRASE=eye cream anti aging(TEST-16.08)"},null,{"$f":"[1]Fast!$D$2","v":20230814},null,{"$f":"[1]Fast!$E$2","v":"Manual"},{"$f":"[1]Fast!$F$2","v":"enabled"},{"$f":"[1]Fast!$G$20","v":10},null,null,null,null,null,{"$f":"[1]Fast!$M$2","v":"Dynamic bids - down only"}]
["Sponsored Products","Bidding Adjustment","Create",{"$f":"[1]Fast!$B$20","v":"SP-EYE-CREAM-HYACID-PHRASE=eye cream anti aging(TEST-16.08)"},null,null,null,null,null,null,null,null,null,null,null,null,null,null,null,null,null,null,{"$f":"[1]Fast!$N$2","v":"placementTop"},{"$f":"[1]Fast!$O$20","v":0}]
["Sponsored Products","Bidding Adjustment","Create",{"$f":"[1]Fast!$B$20","v":"SP-EYE-CREAM-HYACID-PHRASE=eye cream anti aging(TEST-16.08)"},null,null,null,null,null,null,null,null,null,null,null,null,null,null,null,null,null,null,{"$f":"[1]Fast!$P$2","v":"placementProductPage"},{"$f":"[1]Fast!$Q$20","v":0}]
["Sponsored Products","Ad Group","Create",{"$f":"[1]Fast!$B$20","v":"SP-EYE-CREAM-HYACID-PHRASE=eye cream anti aging(TEST-16.08)"},{"$f":"[1]Fast!$B$20","v":"SP-EYE-CREAM-HYACID-PHRASE=eye cream anti aging(TEST-16.08)"},null,null,null,null,null,{"$f":"[1]Fast!$B$20","v":"SP-EYE-CREAM-HYACID-PHRASE=eye cream anti aging(TEST-16.08)"},null,null,null,{"$f":"[1]Fast!$F$2","v":"enabled"},null,null,{"$f":"[1]Fast!$I$2","v":1}]
["Sponsored Products","Product Ad","Create",{"$f":"[1]Fast!$B$20","v":"SP-EYE-CREAM-HYACID-PHRASE=eye cream anti aging(TEST-16.08)"},{"$f":"[1]Fast!$B$20","v":"SP-EYE-CREAM-HYACID-PHRASE=eye cream anti aging(TEST-16.08)"},null,null,null,null,null,null,null,null,null,{"$f":"[1]Fast!$F$2","v":"enabled"},null,{"$f":"[1]Fast!$H$20","v":342324432}]
["Sponsored Products","Keyword","Create",{"$f":"[1]Fast!$B$20","v":"SP-EYE-CREAM-HYACID-PHRASE=eye cream anti aging(TEST-16.08)"},{"$f":"[1]Fast!$B$20","v":"SP-EYE-CREAM-HYACID-PHRASE=eye cream anti aging(TEST-16.08)"},null,null,null,null,null,null,null,null,null,{"$f":"[1]Fast!$F$2","v":"enabled"},null,null,null,{"$f":"[1]Fast!$J$20","v":1.1000000000000001},{"$f":"[1]Fast!$K$20","v":"eye cream anti aging"},{"$f":"[1]Fast!$L$2","v":"Broad"}]
["Sponsored Products","Campaign","Create",{"$f":"[1]Fast!$B$21","v":"SP-EYE-CREAM-HYACID-PHRASE=eye cream for wrinkles(TEST-16.08)"},null,{"$f":"[1]Fast!$C$21","v":"12321213123231"},null,null,null,{"$f":"[1]Fast!$B$21","v":"SP-EYE-CREAM-HYACID-PHRASE=eye cream for wrinkles(TEST-16.08)"},null,{"$f":"[1]Fast!$D$2","v":20230814},null,{"$f":"[1]Fast!$E$2","v":"Manual"},{"$f":"[1]Fast!$F$2","v":"enabled"},{"$f":"[1]Fast!$G$21","v":10},null,null,null,null,null,{"$f":"[1]Fast!$M$2","v":"Dynamic bids - down only"}]
["Sponsored Products","Bidding Adjustment","Create",{"$f":"[1]Fast!$B$21","v":"SP-EYE-CREAM-HYACID-PHRASE=eye cream for wrinkles(TEST-16.08)"},null,null,null,null,null,null,null,null,null,null,null,null,null,null,null,null,null,null,{"$f":"[1]Fast!$N$2","v":"placementTop"},{"$f":"[1]Fast!$O$21","v":0}]
["Sponsored Products","Bidding Adjustment","Create",{"$f":"[1]Fast!$B$21","v":"SP-EYE-CREAM-HYACID-PHRASE=eye cream for wrinkles(TEST-16.08)"},null,null,null,null,null,null,null,null,null,null,null,null,null,null,null,null,null,null,{"$f":"[1]Fast!$P$2","v":"placementProductPage"},{"$f":"[1]Fast!$Q$21","v":0}]
["Sponsored Products","Ad Group","Create",{"$f":"[1]Fast!$B$21","v":"SP-EYE-CREAM-HYACID-PHRASE=eye cream for wrinkles(TEST-16.08)"},{"$f":"[1]Fast!$B$21","v":"SP-EYE-CREAM-HYACID-PHRASE=eye cream for wrinkles(TEST-16.08)"},null,null,null,null,null,{"$f":"[1]Fast!$B$21","v":"SP-EYE-CREAM-HYACID-PHRASE=eye cream for wrinkles(TEST-16.08)"},null,null,null,{"$f":"[1]Fast!$F$2","v":"enabled"},null,null,{"$f":"[1]Fast!$I$2","v":1}]
["Sponsored Products","Product Ad","Create",{"$f":"[1]Fast!$B$21","v":"SP-EYE-CREAM-HYACID-PHRASE=eye cream for wrinkles(TEST-16.08)"},{"$f":"[1]Fast!$B$21","v":"SP-EYE-CREAM-HYACID-PHRASE=eye cream for wrinkles(TEST-16.08)"},null,null,null,null,null,null,null,null,null,{"$f":"[1]Fast!$F$2","v":"enabled"},null,{"$f":"[1]Fast!$H$21","v":342324432}]
["Sponsored Products","Keyword","Create",{"$f":"[1]Fast!$B$21","v":"SP-EYE-CREAM-HYACID-PHRASE=eye cream for wrinkles(TEST-16.08)"},{"$f":"[1]Fast!$B$21","v":"SP-EYE-CREAM-HYACID-PHRASE=eye cream for wrinkles(TEST-16.08)"},null,null,null,null,null,null,null,null,null,{"$f":"[1]Fast!$F$2","v":"enabled"},null,null,null,{"$f":"[1]Fast!$J$21","v":1.1000000000000001},{"$f":"[1]Fast!$K$21","v":"eye cream for wrinkles"},{"$f":"[1]Fast!$L$2","v":"Broad"}]
["Sponsored Products","Campaign","Create",{"$f":"[1]Fast!$B$22","v":"SP-EYE-CREAM-HYACID-PHRASE=mens eye cream(TEST-16.08)"},null,{"$f":"[1]Fast!$C$22","v":"12321213123231"},null,null,null,{"$f":"[1]Fast!$B$22","v":"SP-EYE-CREAM-HYACID-PHRASE=mens eye cream(TEST-16.08)"},null,{"$f":"[1]Fast!$D$2","v":20230814},null,{"$f":"[1]Fast!$E$2","v":"Manual"},{"$f":"[1]Fast!$F$2","v":"enabled"},{"$f":"[1]Fast!$G$22","v":10},null,null,null,null,null,{"$f":"[1]Fast!$M$2","v":"Dynamic bids - down only"}]
["Sponsored Products","Bidding Adjustment","Create",{"$f":"[1]Fast!$B$22","v":"SP-EYE-CREAM-HYACID-PHRASE=mens eye cream(TEST-16.08)"},null,null,null,null,null,null,null,null,null,null,null,null,null,null,null,null,null,null,{"$f":"[1]Fast!$N$2","v":"placementTop"},{"$f":"[1]Fast!$O$22","v":0}]
["Sponsored Products","Bidding Adjustment","Create",{"$f":"[1]Fast!$B$22","v":"SP-EYE-CREAM-HYACID-PHRASE=mens eye cream(TEST-16.08)"},null,null,null,null,null,null,null,null,null,null,null,null,null,null,null,null,null,null,{"$f":"[1]Fast!$P$2","v":"placementProductPage"},{"$f":"[1]Fast!$Q$22","v":0}]
["Sponsored Products","Ad Group","Create",{"$f":"[1]Fast!$B$22","v":"SP-EYE-CREAM-HYACID-PHRASE=mens eye cream(TEST-16.08)"},{"$f":"[1]Fast!$B$22","v":"SP-EYE-CREAM-HYACID-PHRASE=mens eye cream(TEST-16.08)"},null,null,null,null,null,{"$f":"[1]Fast!$B$22","v":"SP-EYE-CREAM-HYACID-PHRASE=mens eye cream(TEST-16.08)"},null,null,null,{"$f":"[1]Fast!$F$2","v":"enabled"},null,null,{"$f":"[1]Fast!$I$2","v":1}]
["Sponsored Products","Product Ad","Create",{"$f":"[1]Fast!$B$22","v":"SP-EYE-CREAM-HYACID-PHRASE=mens eye cream(TEST-16.08)"},{"$f":"[1]Fast!$B$22","v":"SP-EYE-CREAM-HYACID-PHRASE=mens eye cream(TEST-16.08)"},null,null,null,null,null,null,null,null,null,{"$f":"[1]Fast!$F$2","v":"enabled"},null,{"$f":"[1]Fast!$H$22","v":342324432}]
["Sponsored Products","Keyword","Create",{"$f":"[1]Fast!$B$22","v":"SP-EYE-CREAM-HYACID-PHRASE=mens eye cream(TEST-16.08)"},{"$f":"[1]Fast!$B$22","v":"SP-EYE-CREAM-HYACID-PHRASE=mens eye cream(TEST-16.08)"},null,null,null,null,null,null,null,null,null,{"$f":"[1]Fast!$F$2","v":"enabled"},null,null,null,{"$f":"[1]Fast!$J$22","v":1.1000000000000001},{"$f":"[1]Fast!$K$22","v":"mens eye cream"},{"$f":"[1]Fast!$L$2","v":"Broad"}]
["Sponsored Products","Campaign","Create",{"$f":"[1]Fast!$B$23","v":"SP-EYE-CREAM-HYACID-PHRASE=eye cream(TEST-16.08)"},null,{"$f":"[1]Fast!$C$23","v":"12321213123231"},null,null,null,{"$f":"[1]Fast!$B$23","v":"SP-EYE-CREAM-HYACID-PHRASE=eye cream(TEST-16.08)"},null,{"$f":"[1]Fast!$D$2","v":20230814},null,{"$f":"[1]Fast!$E$2","v":"Manual"},{"$f":"[1]Fast!$F$2","v":"enabled"},{"$f":"[1]Fast!$G$23","v":10},null,null,null,null,null,{"$f":"[1]Fast!$M$2","v":"Dynamic bids - down only"}]
["Sponsored Products","Bidding Adjustment","Create",{"$f":"[1]Fast!$B$23","v":"SP-EYE-CREAM-HYACID-PHRASE=eye cream(TEST-16.08)"},null,null,null,null,null,null,null,null,null,null,null,null,null,null,null,null,null,null,{"$f":"[1]Fast!$N$2","v":"placementTop"},{"$f":"[1]Fast!$O$23","v":0}]
["Sponsored Products","Bidding Adjustment","Create",{"$f":"[1]Fast!$B$23","v":"SP-EYE-CREAM-HYACID-PHRASE=eye cream(TEST-16.08)"},null,null,null,null,null,null,null,null,null,null,null,null,null,null,null,null,null,null,{"$f":"[1]Fast!$P$2","v":"placementProductPage"},{"$f":"[1]Fast!$Q$23","v":0}]
["Sponsored Products","Ad Group","Create",{"$f":"[1]Fast!$B$23","v":"SP-EYE-CREAM-HYACID-PHRASE=eye cream(TEST-16.08)"},{"$f":"[1]Fast!$B$23","v":"SP-EYE-CREAM-HYACID-PHRASE=eye cream(TEST-16.08)"},null,null,null,null,null,{"$f":"[1]Fast!$B$23","v":"SP-EYE-CREAM-HYACID-PHRASE=eye cream(TEST-16.08)"},null,null,null,{"$f":"[1]Fast!$F$2","v":"enabled"},null,null,{"$f":"[1]Fast!$I$2","v":1}]
["Sponsored Products","Product Ad","Create",{"$f":"[1]Fast!$B$23","v":"SP-EYE-CREAM-HYACID-PHRASE=eye cream(TEST-16.08)"},{"$f":"[1]Fast!$B$23","v":"SP-EYE-CREAM-HYACID-PHRASE=eye cream(TEST-16.08)"},null,null,null,null,null,null,null,null,null,{"$f":"[1]Fast!$F$2","v":"enabled"},null,{"$f":"[1]Fast!$H$23","v":342324432}]
["Sponsored Products","Keyword","Create",{"$f":"[1]Fast!$B$23","v":"SP-EYE-CREAM-HYACID-PHRASE=eye cream(TEST-16.08)"},{"$f":"[1]Fast!$B$23","v":"SP-EYE-CREAM-HYACID-PHRASE=eye cream(TEST-16.08)"},null,null,null,null,null,null,null,null,null,{"$f":"[1]Fast!$F$2","v":"enabled"},null,null,null,{"$f":"[1]Fast!$J$23","v":1.1000000000000001},{"$f":"[1]Fast!$K$23","v":"eye cream"},{"$f":"[1]Fast!$L$2","v":"Broad"}]
["Sponsored Products","Campaign","Create",{"$f":"[1]Fast!$B$24","v":"SP-EYE-CREAM-HYACID-PHRASE=eye cream hydrating(TEST-16.08)"},null,{"$f":"[1]Fast!$C$24","v":"12321213123231"},null,null,null,{"$f":"[1]Fast!$B$24","v":"SP-EYE-CREAM-HYACID-PHRASE=eye cream hydrating(TEST-16.08)"},null,{"$f":"[1]Fast!$D$2","v":20230814},null,{"$f":"[1]Fast!$E$2","v":"Manual"},{"$f":"[1]Fast!$F$2","v":"enabled"},{"$f":"[1]Fast!$G$24","v":10},null,null,null,null,null,{"$f":"[1]Fast!$M$2","v":"Dynamic bids - down only"}]
["Sponsored Products","Bidding Adjustment","Create",{"$f":"[1]Fast!$B$24","v":"SP-EYE-CREAM-HYACID-PHRASE=eye cream hydrating(TEST-16.08)"},null,null,null,null,null,null,null,null,null,null,null,null,null,null,null,null,null,null,{"$f":"[1]Fast!$N$2","v":"placementTop"},{"$f":"[1]Fast!$O$24","v":0}]
["Sponsored Products","Bidding Adjustment","Create",{"$f":"[1]Fast!$B$24","v":"SP-EYE-CREAM-HYACID-PHRASE=eye cream hydrating(TEST-16.08)"},null,null,null,null,null,null,null,null,null,null,null,null,null,null,null,null,null,null,{"$f":"[1]Fast!$P$2","v":"placementProductPage"},{"$f":"[1]Fast!$Q$24","v":0}]
["Sponsored Products","Ad Group","Create",{"$f":"[1]Fast!$B$24","v":"SP-EYE-CREAM-HYACID-PHRASE=eye cream hydrating(TEST-16.08)"},{"$f":"[1]Fast!$B$24","v":"SP-EYE-CREAM-HYACID-PHRASE=eye cream hydrating(TEST-16.08)"},null,null,null,null,null,{"$f":"[1]Fast!$B$24","v":"SP-EYE-CREAM-HYACID-PHRASE=eye cream hydrating(TEST-16.08)"},null,null,null,{"$f":"[1]Fast!$F$2","v":"enabled"},null,null,{"$f":"[1]Fast!$I$2","v":1}]
["Sponsored Products","Product Ad","Create",{"$f":"[1]Fast!$B$24","v":"SP-EYE-CREAM-HYACID-PHRASE=eye cream hydrating(TEST-16.08)"},{"$f":"[1]Fast!$B$24","v":"SP-EYE-CREAM-HYACID-PHRASE=eye cream hydrating(TEST-16.08)"},null,null,null,null,null,null,null,null,null,{"$f":"[1]Fast!$F$2","v":"enabled"},null,{"$f":"[1]Fast!$H$24","v":342324432}]
["Sponsored Products","Keyword","Create",{"$f":"[1]Fast!$B$24","v":"SP-EYE-CREAM-HYACID-PHRASE=eye cream hydrating(TEST-16.08)"},{"$f":"[1]Fast!$B$24","v":"SP-EYE-CREAM-HYACID-PHRASE=eye cream hydrating(TEST-16.08)"},null,null,null,null,null,null,null,null,null,{"$f":"[1]Fast!$F$2","v":"enabled"},null,null,null,{"$f":"[1]Fast!$J$24","v":1.1000000000000001},{"$f":"[1]Fast!$K$24","v":"eye cream hydrating"},{"$f":"[1]Fast!$L$2","v":"Broad"}]
["Sponsored Products","Campaign","Create",{"$f":"[1]Fast!$B$25","v":"SP-EYE-CREAM-HYACID-PHRASE=anti aging eye cream(TEST-16.08)"},null,{"$f":"[1]Fast!$C$25","v":"12321213123231"},null,null,null,{"$f":"[1]Fast!$B$25","v":"SP-EYE-CREAM-HYACID-PHRASE=anti aging eye cream(TEST-16.08)"},null,{"$f":"[1]Fast!$D$2","v":20230814},null,{"$f":"[1]Fast!$E$2","v":"Manual"},{"$f":"[1]Fast!$F$2","v":"enabled"},{"$f":"[1]Fast!$G$25","v":10},null,null,null,null,null,{"$f":"[1]Fast!$M$2","v":"Dynamic bids - down only"}]
["Sponsored Products","Bidding Adjustment","Create",{"$f":"[1]Fast!$B$25","v":"SP-EYE-CREAM-HYACID-PHRASE=anti aging eye cream(TEST-16.08)"},null,null,null,null,null,null,null,null,null,null,null,null,null,null,null,null,null,null,{"$f":"[1]Fast!$N$2","v":"placementTop"},{"$f":"[1]Fast!$O$25","v":0}]
["Sponsored Products","Bidding Adjustment","Create",{"$f":"[1]Fast!$B$25","v":"SP-EYE-CREAM-HYACID-PHRASE=anti aging eye cream(TEST-16.08)"},null,null,null,null,null,null,null,null,null,null,null,null,null,null,null,null,null,null,{"$f":"[1]Fast!$P$2","v":"placementProductPage"},{"$f":"[1]Fast!$Q$25","v":0}]
["Sponsored Products","Ad Group","Create",{"$f":"[1]Fast!$B$25","v":"SP-EYE-CREAM-HYACID-PHRASE=anti aging eye cream(TEST-16.08)"},{"$f":"[1]Fast!$B$25","v":"SP-EYE-CREAM-HYACID-PHRASE=anti aging eye cream(TEST-16.08)"},null,null,null,null,null,{"$f":"[1]Fast!$B$25","v":"SP-EYE-CREAM-HYACID-PHRASE=anti aging eye cream(TEST-16.08)"},null,null,null,{"$f":"[1]Fast!$F$2","v":"enabled"},null,null,{"$f":"[1]Fast!$I$2","v":1}]
["Sponsored Products","Product Ad","Create",{"$f":"[1]Fast!$B$25","v":"SP-EYE-CREAM-HYACID-PHRASE=anti aging eye cream(TEST-16.08)"},{"$f":"[1]Fast!$B$25","v":"SP-EYE-CREAM-HYACID-PHRASE=anti aging eye cream(TEST-16.08)"},null,null,null,null,null,null,null,null,null,{"$f":"[1]Fast!$F$2","v":"enabled"},null,{"$f":"[1]Fast!$H$25","v":342324432}]
["Sponsored Products","Keyword","Create",{"$f":"[1]Fast!$B$25","v":"SP-EYE-CREAM-HYACID-PHRASE=anti aging eye cream(TEST-16.08)"},{"$f":"[1]Fast!$B$25","v":"SP-EYE-CREAM-HYACID-PHRASE=anti aging eye cream(TEST-16.08)"},null,null,null,null,null,null,null,null,null,{"$f":"[1]Fast!$F$2","v":"enabled"},null,null,null,{"$f":"[1]Fast!$J$25","v":1.1000000000000001},{"$f":"[1]Fast!$K$25","v":"anti aging eye cream"},{"$f":"[1]Fast!$L$2","v":"Broad"}]
["Sponsored Products","Campaign","Create",{"$f":"[1]Fast!$B$26","v":"SP-EYE-CREAM-HYACID-PHRASE=eyelid lift(TEST-16.08)"},null,{"$f":"[1]Fast!$C$26","v":"12321213123231"},null,null,null,{"$f":"[1]Fast!$B$26","v":"SP-EYE-CREAM-HYACID-PHRASE=eyelid lift(TEST-16.08)"},null,{"$f":"[1]Fast!$D$2","v":20230814},null,{"$f":"[1]Fast!$E$2","v":"Manual"},{"$f":"[1]Fast!$F$2","v":"enabled"},{"$f":"[1]Fast!$G$26","v":10},null,null,null,null,null,{"$f":"[1]Fast!$M$2","v":"Dynamic bids - down only"}]
["Sponsored Products","Bidding Adjustment","Create",{"$f":"[1]Fast!$B$26","v":"SP-EYE-CREAM-HYACID-PHRASE=eyelid lift(TEST-16.08)"},null,null,null,null,null,null,null,null,null,null,null,null,null,null,null,null,null,null,{"$f":"[1]Fast!$N$2","v":"placementTop"},{"$f":"[1]Fast!$O$26","v":0}]
["Sponsored Products","Bidding Adjustment","Create",{"$f":"[1]Fast!$B$26","v":"SP-EYE-CREAM-HYACID-PHRASE=eyelid lift(TEST-16.08)"},null,null,null,null,null,null,null,null,null,null,null,null,null,null,null,null,null,null,{"$f":"[1]Fast!$P$2","v":"placementProductPage"},{"$f":"[1]Fast!$Q$26","v":0}]
["Sponsored Products","Ad Group","Create",{"$f":"[1]Fast!$B$26","v":"SP-EYE-CREAM-HYACID-PHRASE=eyelid lift(TEST-16.08)"},{"$f":"[1]Fast!$B$26","v":"SP-EYE-CREAM-HYACID-PHRASE=eyelid lift(TEST-16.08)"},null,null,null,null,null,{"$f":"[1]Fast!$B$26","v":"SP-EYE-CREAM-HYACID-PHRASE=eyelid lift(TEST-16.08)"},null,null,null,{"$f":"[1]Fast!$F$2","v":"enabled"},null,null,{"$f":"[1]Fast!$I$2","v":1}]
["Sponsored Products","Product Ad","Create",{"$f":"[1]Fast!$B$26","v":"SP-EYE-CREAM-HYACID-PHRASE=eyelid lift(TEST-16.08)"},{"$f":"[1]Fast!$B$26","v":"SP-EYE-CREAM-HYACID-PHRASE=eyelid lift(TEST-16.08)"},null,null,null,null,null,null,null,null,null,{"$f":"[1]Fast!$F$2","v":"enabled"},null,{"$f":"[1]Fast!$H$26","v":342324432}]
["Sponsored Products","Keyword","Create",{"$f":"[1]Fast!$B$26","v":"SP-EYE-CREAM-HYACID-PHRASE=eyelid lift(TEST-16.08)"},{"$f":"[1]Fast!$B$26","v":"SP-EYE-CREAM-HYACID-PHRASE=eyelid lift(TEST-16.08)"},null,null,null,null,null,null,null,null,null,{"$f":"[1]Fast!$F$2","v":"enabled"},null,null,null,{"$f":"[1]Fast!$J$26","v":1.1000000000000001},{"$f":"[1]Fast!$K$26","v":"eyelid lift"},{"$f":"[1]Fast!$L$2","v":"Broad"}]
["Sponsored Products","Campaign","Create",{"$f":"[1]Fast!$B$27","v":"SP-EYE-CREAM-HYACID-PHRASE=eye wrinkle cream(TEST-16.08)"},null,{"$f":"[1]Fast!$C$27","v":"12321213123231"},null,null,null,{"$f":"[1]Fast!$B$27","v":"SP-EYE-CREAM-HYACID-PHRASE=eye wrinkle cream(TEST-16.08)"},null,{"$f":"[1]Fast!$D$2","v":20230814},null,{"$f":"[1]Fast!$E$2","v":"Manual"},{"$f":"[1]Fast!$F$2","v":"enabled"},{"$f":"[1]Fast!$G$27","v":10},null,null,null,null,null,{"$f":"[1]Fast!$M$2","v":"Dynamic bids - down only"}]
["Sponsored Products","Bidding Adjustment","Create",{"$f":"[1]Fast!$B$27","v":"SP-EYE-CREAM-HYACID-PHRASE=eye wrinkle cream(TEST-16.08)"},null,null,null,null,null,null,null,null,null,null,null,null,null,null,null,null,null,null,{"$f":"[1]Fast!$N$2","v":"placementTop"},{"$f":"[1]Fast!$O$27","v":0}]
["Sponsored Products","Bidding Adjustment","Create",{"$f":"[1]Fast!$B$27","v":"SP-EYE-CREAM-HYACID-PHRASE=eye wrinkle cream(TEST-16.08)"},null,null,null,null,null,null,null,null,null,null,null,null,null,null,null,null,null,null,{"$f":"[1]Fast!$P$2","v":"placementProductPage"},{"$f":"[1]Fast!$Q$27","v":0}]
["Sponsored Products","Ad Group","Create",{"$f":"[1]Fast!$B$27","v":"SP-EYE-CREAM-HYACID-PHRASE=eye wrinkle cream(TEST-16.08)"},{"$f":"[1]Fast!$B$27","v":"SP-EYE-CREAM-HYACID-PHRASE=eye wrinkle cream(TEST-16.08)"},null,null,null,null,null,{"$f":"[1]Fast!$B$27","v":"SP-EYE-CREAM-HYACID-PHRASE=eye wrinkle cream(TEST-16.08)"},null,null,null,{"$f":"[1]Fast!$F$2","v":"enabled"},null,null,{"$f":"[1]Fast!$I$2","v":1}]
["Sponsored Products","Product Ad","Create",{"$f":"[1]Fast!$B$27","v":"SP-EYE-CREAM-HYACID-PHRASE=eye wrinkle cream(TEST-16.08)"},{"$f":"[1]Fast!$B$27","v":"SP-EYE-CREAM-HYACID-PHRASE=eye wrinkle cream(TEST-16.08)"},null,null,null,null,null,null,null,null,null,{"$f":"[1]Fast!$F$2","v":"enabled"},null,{"$f":"[1]Fast!$H$27","v":342324432}]
["Sponsored Products","Keyword","Create",{"$f":"[1]Fast!$B$27","v":"SP-EYE-CREAM-HYACID-PHRASE=eye wrinkle cream(TEST-16.08)"},{"$f":"[1]Fast!$B$27","v":"SP-EYE-CREAM-HYACID-PHRASE=eye wrinkle cream(TEST-16.08)"},null,null,null,null,null,null,null,null,null,{"$f":"[1]Fast!$F$2","v":"enabled"},null,null,null,{"$f":"[1]Fast!$J$27","v":1.1000000000000001},{"$f":"[1]Fast!$K$27","v":"eye wrinkle cream"},{"$f":"[1]Fast!$L$2","v":"Broad"}]

{"sheet":"Config","index":3,"n_rows":81,"n_cols":10,"rows_kept":81,"cut":false,"hidden":true,"merged":[]}
["SponsoredProductsProductNames","Sponsored Products"]
["SponsoredProductsEntityNames","Campaign","Ad Group","Bidding Adjustment","Campaign Negative Keyword","Keyword","Negative Keyword","Product Targeting","Negative Product Targeting","Product Ad"]
["SponsoredProductsOperationNames","Create","Update","Archive"]
["SponsoredProductsCreateCampaignNegativeKeywordMatchTypes","negativeExact","negativePhrase"]
["SponsoredProductsCreateKeywordMatchTypes","exact","phrase","broad"]
["SponsoredProductsCreateNegativeKeywordMatchTypes","negativeExact","negativePhrase"]
["SponsoredProductsCreateCampaignTargetingTypes","AUTO","MANUAL"]
["SponsoredProductsCreateCampaignStates","enabled","paused"]
["SponsoredProductsUpdateCampaignStates","enabled","paused","archived"]
["SponsoredProductsCreateCampaignNegativeKeywordStates","enabled"]
["SponsoredProductsUpdateCampaignNegativeKeywordStates","archived"]
["SponsoredProductsCreateAdGroupStates","enabled","paused"]
["SponsoredProductsUpdateAdGroupStates","enabled","paused","archived"]
["SponsoredProductsUpdateProductAdStates","enabled","paused","archived"]
["SponsoredProductsCreateProductTargetingStates","enabled","paused"]
["SponsoredProductsUpdateProductTargetingStates","enabled","paused","archived"]
["SponsoredProductsCreateNegativeProductTargetingStates","enabled","paused"]
["SponsoredProductsUpdateNegativeProductTargetingStates","enabled","paused","archived"]
["SponsoredProductsCreateKeywordStates","enabled","paused"]
["SponsoredProductsUpdateKeywordStates","enabled","paused","archived"]
["SponsoredProductsCreateNegativeKeywordStates","enabled","paused"]
["SponsoredProductsUpdateNegativeKeywordStates","enabled","paused","archived"]
["SponsoredProductsCreateProductAdStates","enabled","paused"]
["SponsoredProductsCreateBiddingAdjustmentPlacements","placementTop","placementProductPage"]
["SponsoredProductsUpdateBiddingAdjustmentPlacements","placementTop","placementProductPage"]
["SponsoredProductsCreateCampaignStrategys","Dynamic bids - down only","Dynamic bids - up and down","Fixed bid"]
["SponsoredProductsUpdateCampaignStrategys","Dynamic bids - down only","Dynamic bids - up and down","Fixed bid"]
["SponsoredProductsCreateCampaignRequiredHeaders","Campaign Id","Campaign Name","Daily Budget","Targeting Type","State","Start Date","Bidding Strategy"]
["SponsoredProductsUpdateCampaignRequiredHeaders","Campaign Id","Campaign Name","Daily Budget","State","Start Date","Bidding Strategy"]
["SponsoredProductsArchiveCampaignRequiredHeaders","Campaign Id"]
["SponsoredProductsCreateBiddingAdjustmentRequiredHeaders","Campaign Id","Placement"]
["SponsoredProductsUpdateBiddingAdjustmentRequiredHeaders","Campaign Id","Placement"]
["SponsoredProductsArchiveBiddingAdjustmentRequiredHeaders","Campaign Id"]
["SponsoredProductsCreateCampaignNegativeKeywordRequiredHeaders","Campaign Id","State","Keyword Text","Match Type"]
["SponsoredProductsUpdateCampaignNegativeKeywordRequiredHeaders","Keyword Id","State"]
["SponsoredProductsArchiveCampaignNegativeKeywordRequiredHeaders","Keyword Id"]
["SponsoredProductsCreateAdGroupRequiredHeaders","Campaign Id","Ad Group Id","Ad Group Name","Ad Group Default Bid","State"]
["SponsoredProductsUpdateAdGroupRequiredHeaders","Ad Group Id","Ad Group Name","Ad Group Default Bid","State"]
["SponsoredProductsArchiveAdGroupRequiredHeaders","Ad Group Id"]
["SponsoredProductsUpdateProductAdRequiredHeaders","Ad Id","State"]
["SponsoredProductsArchiveProductAdRequiredHeaders","Ad Id"]
["SponsoredProductsCreateProductTargetingRequiredHeaders","Campaign Id","Ad Group Id","State","Product Targeting Expression"]
["SponsoredProductsUpdateProductTargetingRequiredHeaders","Product Targeting Id","State"]
["SponsoredProductsArchiveProductTargetingRequiredHeaders","Product Targeting Id"]
["SponsoredProductsCreateNegativeProductTargetingRequiredHeaders","Campaign Id","Ad Group Id","State","Product Targeting Expression"]
["SponsoredProductsUpdateNegativeProductTargetingRequiredHeaders","Product Targeting Id","State"]
["SponsoredProductsArchiveNegativeProductTargetingRequiredHeaders","Product Targeting Id"]
["SponsoredProductsCreateKeywordRequiredHeaders","Campaign Id","Ad Group Id","State","Keyword Text","Match Type"]
["SponsoredProductsUpdateKeywordRequiredHeaders","Keyword Id","State"]
["SponsoredProductsArchiveKeywordRequiredHeaders","Keyword Id"]
["SponsoredProductsCreateNegativeKeywordRequiredHeaders","Campaign Id","Ad Group Id","State","Keyword Text","Match Type"]
["SponsoredProductsUpdateNegativeKeywordRequiredHeaders","Keyword Id","State"]
["SponsoredProductsArchiveNegativeKeywordRequiredHeaders","Keyword Id"]
["SponsoredProductsCreateProductAdRequiredHeaders","Campaign Id","Ad Group Id","SKU","State"]
["SponsoredProductsCreateCampaignOptionalHeaders","Portfolio Id","End Date"]
["SponsoredProductsUpdateCampaignOptionalHeaders","Portfolio Id","End Date"]
["SponsoredProductsArchiveCampaignOptionalHeaders"]
["SponsoredProductsCreateBiddingAdjustmentOptionalHeaders","Percentage"]
["SponsoredProductsUpdateBiddingAdjustmentOptionalHeaders","Percentage"]
["SponsoredProductsArchiveBiddingAdjustmentOptionalHeaders"]
["SponsoredProductsCreateCampaignNegativeKeywordOptionalHeaders"]
["SponsoredProductsUpdateCampaignNegativeKeywordOptionalHeaders"]
["SponsoredProductsArchiveCampaignNegativeKeywordOptionalHeaders"]
["SponsoredProductsCreateAdGroupOptionalHeaders"]
["SponsoredProductsUpdateAdGroupOptionalHeaders"]
["SponsoredProductsArchiveAdGroupOptionalHeaders"]
["SponsoredProductsUpdateProductAdOptionalHeaders"]
["SponsoredProductsArchiveProductAdOptionalHeaders"]
["SponsoredProductsCreateProductTargetingOptionalHeaders","Bid"]
["SponsoredProductsUpdateProductTargetingOptionalHeaders","Bid"]
["SponsoredProductsArchiveProductTargetingOptionalHeaders"]
["SponsoredProductsCreateNegativeProductTargetingOptionalHeaders"]
["SponsoredProductsUpdateNegativeProductTargetingOptionalHeaders"]
["SponsoredProductsArchiveNegativeProductTargetingOptionalHeaders"]
["SponsoredProductsCreateKeywordOptionalHeaders","Bid"]
["SponsoredProductsUpdateKeywordOptionalHeaders","Bid"]
["SponsoredProductsArchiveKeywordOptionalHeaders"]
["SponsoredProductsCreateNegativeKeywordOptionalHeaders"]
["SponsoredProductsUpdateNegativeKeywordOptionalHeaders"]
["SponsoredProductsArchiveNegativeKeywordOptionalHeaders"]
["SponsoredProductsCreateProductAdOptionalHeaders"]